{"text_format":"3","workbook":"xlsx","n_sheets":10,"sheets":["Naslоvna","0_PRIPREMNO_ZAVRSNI","I_GRAĐEVINSKI_GZ","II_VIK","III_EE","V_TiS","VI_MASINSKE","VII_PPZ","SPOLJNO UREĐENJE","REKAPITULACIJA"],"not_rendered":{"defined_names":18},"read":"whole","date_system":"1900"}

{"sheet":"Naslоvna","index":0,"n_rows":44,"n_cols":3,"rows_kept":44,"merged":[[5,0,5,5],[8,0,8,5],[13,1,13,5],[14,1,14,5],[17,1,17,5],[19,1,19,5],[21,1,21,5],[23,2,23,3],[24,1,24,5],[25,1,25,5],[26,1,26,5],[27,1,27,5],[28,1,28,5],[29,1,29,5],[30,1,30,5],[31,1,31,5],[32,1,32,5],[33,1,33,5],[34,1,34,5],[35,1,35,5],[37,1,37,5],[38,1,38,5],[39,1,39,5],[40,1,40,5],[41,1,41,5],[42,1,42,5],[43,1,43,5]]}
[]
[]
[]
[]
[]
["PREDMER I PREDRAČUN"]
{"$rows_empty":7}
[null,"Сви ставови предмера подразумевају извођење сваке позиције рада безусловно стручно, прецизно и квалитетно а у свему према: одобреним цртежима, техничком опису и описима у овом предрачуну,  важећим техничким прописима,  опште техничким условима за извођење грађевинских и грађевинско занатских радова, стандардима и упутствима надзорног органа и пројектанта, уколико у дотичној позицији није другачије условљено."]
[null,"ОПШТА НАПОМЕНА: Понуђачима је дозвољено да за нуђење сваке позиције могу дати алтернативу која ће одговарати пројектом предвиђен квалитет уз неопходну сагласност Надзора, Инвеститора и Наручиоца ."]
[]
[]
[null,"Напомена: Саставни део овог предмера су ОПШТИ ТЕХНИЧКИ УСЛОВИ ЗА ИЗВОЂЕЊЕ СВИХ ГРАЂЕВИНСКО ЗАНАТСКИХ РАДОВА"]
[]
[]
[]
[]
[]
[null,"\n00.00              ","ОПШТИ УСЛОВИ"]
[null,"\nОпшти услови за извођење грађевинских и грађевинско занатских радова."]
[null,"Сви ставови предмера и предрачуна подразумевају извођење сваке позиције рада безусловно стручно, прецизно и квалитетно а у свему према: одобреним цртежима, техничком опису и описима у овом предрачуну, техничким  условима и детаљима из елабората за грађевинску физику, статичком прорачуну, детаљима као и накнадним детаљима , важећим техничким прописима, стандардима и упутствима наџорног органа и пројектанта, уколико у дотичној позицији није другачије условљено."]
[null,"Све одредбе ових општих услова као и наведених општих описа, су саставни делови уговора склопљеног између инвеститора и извођача."]
[null,"Сви радови и материјали наведени у описима појединих позиција овог предрачуна морају бити обухваћени понуђеним ценама извођача. Уговорене цене су појединачне цене извођача и оне обухватају све издатке за рад, материјал са уобичајеним растуром, спољни и унутрашји транспорт, скелу и оплату за извођење радова (уколико оне за поједине позиције радова нису предвиђене овим предрачуном), воду, осветљење, погонски материјал и енергију за машине, копање и затрпавање кречане, магацине за ускладиштење материјала, привремене градилишне просторије, канцеларије, радничке просторије, режију извођача, друштвене доприносе, све државне и општинске таксе, зараду извођача као и све остале издатке условљене постојећим прописима за формирање продајне цене грађевинског производа, укључујући ту и све издатке који потичу из посебних услова рада које предвиђају норме у грађевинарству, као и услове наведене у претходна два  става.\nИзвођач нема право да захтева никакве доплате на понуђене и уговорене цене, изузев ако је изричито наведено у некој позицији да се известан наведен рад плаћа засебно, а није предвиђен у другој позицији."]
[null,"Обрачун и класификација изведених радова вршиће се према просечним нормама у грађевинарству, што је обавезно и за инвеститора и извођача, уколико у описима  појединих позиција предрачуна радова не буде другачије назначено."]
[null,"Исто тако обавезни су за извођача и сви описи радова из поменутих норми уколико се у опису дотичне позиције рада или у општем опису не предвиђа другачије."]
[null,"Општи опис дат за једну врсту рада и материјала обавезује извођача да све такве радове у појединим позицијама изведе по том опису, без обзира да ли се у дотичној позицији позива на пшти опис, колико опис рада није у тој позицији другачије наведен."]
[null,"Код свих грађевинских и грађевинско занатских радова условљава се употреба одговарајуће радне снаге и квалитетног материјала који мора одговарати постојећим техничким прописима, важећим стандардима и описима одговарајућих позиција у предрачуну радова. За сваки материјал који се уграђује, извођач мора претходно поднети надзорном органу атест на увид. У спорним случајевима у погледу  Квалитета материјала, узорци ће се достављати Заводу за испитивање материјала, чији су налази меродавни и за инвеститора и за извођача. Ако извођач и поред негативног налаза  Завода за испитивање материјала уграђује и даље неквалитетан материјал, инвеститор ће наредити рушење, а сва материјална штета од наредног рушења пада на терет извођача без права рекламације и приговора на рушење које у том смислу доносе инвеститор или грађевинска инспекција."]
[null,"Сав материјал за који представник инвеститора констатује да не одговара погодбеном предрачуну и прописаном квалитету, извођач је дужан да одмах уклони са градилишта, а инвеститор ће обуставити рад уколико извођач покуша да га употреби. Код свих грађевинских и грађевинско занатских радова условљава се употреба одговарајуће стручне квалификоване  радне снаге, како је то за поједине позиције радова предвиђено у просечним нормама у грађевинарству. Извођач је дужан да на захтев инвеститора  удаљи са градилишта несавесног и нестручног радника. Пре почетка сваког  рада руководилац градилишта  је дужана да благовремено затражи од представника инвеститора потребно објашњење планова и обавештења за све радове који нису довољно дефинисани пројектним елаборатом"]
[null,"Ако би извођач, не консултујући инвеститора, поједине радове погрешно извео, или их извео противно добијеном упутству преко грађевинског дневника, односно противно предвиђеном опису, плановима и датим детаљима, неће му се уважити никакво оправдање. У оваквом случају извођач је дужан да без обзира на количину извршеног посла, све освом трошку поруши у уклони, па поново насвој терет да изведе како је предвиђено плановима, описима  и детаљима, изузев ако овакве измене не буду преко грађевинског дневника од стране представника инвеститора одобрене. Ако извођач, неки посао, буде извео боље и скупље од предвиђеног квалитета, нема права да захтева доплату, уколико је то на своју руку узвршио, без претходно добијеног одобрења или наређења представника инвеститора, преко грађевинског дневника."]
[null,"Објекат и цело градилиште извођач мора одржавати уредно и потпуно чисто, а по завршетку радова, пре предаје објекта, све рупе, ЊЦ јаме, рупе од скела и ограда, извођач је дужан да затрпа, набије, поравна, целу површину нивелише и то све добро да се касније не би јављала слегања."]
[null,"За технички преглед и примопредају, извођач мора цео објекат и градилишну парцелу очистити од шута, вишкова материјала, свих средстава рада и помоћних објеката.\nСви прилази објекту, платои, степеништа, стазе, као и подови у свим просторијама морају бити поптпуно чисти као и сва столарија, браварија, стаклене површине и све кровне површине.\nКоловоз и тротоари оштећени извођењем радова или транспортом, такође се морају довести у исправно стање за технички преглед и примо предају објекта."]
[]
[null,"Сви наведени завршни радови не плаћају се посебно, јер морају бити обухваћени уговореним ценама. Евентуалну штету, коју би извођач у току извођења радова учинио у кругу градилишта или на суседним зградама, дужан је да отклони и доведе у првобитно стање о свом трошку.\nПосебно се скреће пажња извођачу да је једино он одговоран за сву штету коју би нанео својим непажљивим и неодговорним  радом на суседним, постојећим објектима. Уколико се појави потреба осигурања (подбетониравања и слично) темеља постојећих суседних објеката, такав рад ће инвеститор платити посебно, но једино ће извођач бити одговоран за сву штету уколико он благовремено не предузме  све потребне мере за осигурање суседних објеката."]
[null,"У случају конструктивних измена, као и у случају повећања, смањења или сторнирања појединих радова из предрачуна настале вишкове или мањкове, извођач је обавезан да усвоји без примедби и ограничења, као и без права на одштету, с тим што ће му се било вишак или мањак обрачунати по погодбеним ценама.\nУ случају да наступи потреба за радовима који немају погодбену цену у предрачуну, извођач је дужан да за исте добије одобрење представника инвеститора, утврди за њих цену и све то уведе у грађевински дневник, а према ценовнику свих материјала и радне снаге, који је дужан да приложи уз понуду."]
[null,"Инвеститор има право да за специјалне радове (изолација крова, нови материјали и друго) захтева од извођача писмену гаранцију да ће изведени радови бити трајни и квалитетни.\nИзвођач је дужан да усклади рад подизвођача који самостално изводе поједине врсте радова, како једни другима не би наносили штету, а уколико би до тога дошло, дужан је да одмах регулише отклањање и накнаду штете, на терет кривца. У противном, трошкове за отклањање оваквих штета, сносиће сам извођач. Ово се односи и на све сметње и штете које би настале због непридржавања договореног редоследа и временског плана извођења појединих радова. Надзорни орган има право да захтева да извођач за нове материјале поднесе на увид узорке на основу којих ће он (надзорни орган) извршити избор. Набавка ових узорака не плаћа се посебно."]
[null,"Поред свих привремених објеката који су извођачу потребни за извођење радова, извођач је дужан да обезбеди просторију за канцеларију надзорног органа и да је за време градње објекта одржава уредно уз потребно осигурање светла, огрева, чишћења, као и неопходног канцеларијског инвентара.\nУколико је извођачу потребно да заузме ради организације градилишта и ускладиштења материјала, поред парцеле још и суседна земљишта и тротоаре, извођач ће за ово коришћење прибавити одобрење од надлежног органа, односно сопственика, с тим да потребне издатке за ово коришћење не може посебно да зарачуна инвеститору.\nИзвођач је дужан да изради елаборат о заштити на раду на градилишту, а према важећем \"Правилнику о заштити на раду у грађевинарству\"."]
[null,"Извођач је дужан да код техничког прегледа, инвеститору преда све потврде које су законом и прописима предвиђене (о постављењу објекта на регулациону линију, прикључцима на енергетске изворе, водоводну и канализациону мрежу, итд.). Сви издаци око добијања ове документације падају на терет извођача.\nИзвођач је дужан да по завршеном послу поднети инвеститору потврду да је платио утрошену воду, електричну енергију и остале таксе које терете извођача за време извођења радова.\nГрађевинску књигу и грађевински дневник извођач ће водити на основу постојећих законских прописа, свакодневно уписујући потребне податке, које ће представник инвеститора свакодневно прегледати и оверавати својим потписом на свакој страни.\nУ случају погодбе по принципу \"под кључ\" извођач је обавезан да изврши претходну контролу количина радова датих у предрачуну."]
[null,"Саставни део уговора су поред ових општих услова такође и посебни услови инвеститора, постојећа техничка и законска регулатива као и комплетан елаборат техничке документације.\nСви радови се морају извести са свим потребним конструктивним деловима потпуно беспреркопрно и по детаљима пројектанта.\nДо предаје објекта инвеститору извођач одговара апсолутно за све на њему и у случају какве штете или квара дужан је  о свом трошку све довести у исправно стање.\nИзвођач је дужан да на градилиште постави за цело време изградње висококвалификованог и искусног стручњака који ће одговарати за стручну контролу и тачно извршење свих обавеза извођача."]
[null,"За све радове у предрачуну где је потребна оплата и скела, извођач је дужан да исте добави и солидно изради, што се засебно не плаћа већ је укалкулисано у понуђену цену одговарајућег рада.\nСве потребне отворе и жљебове у зидовима и таваницама за спровођење инсталација и разних уређаја дужан је извођач тачно израдити према детаљима и диспозиционим плановима, а после полагања цеви и жљебове зазидати и замалтерисати. Ово се не плаћа посебно већ је обухваћено ценом односних конструкција, зидања и малтерисања.\nСве обавезе у овим општим условима и општим описима извођач прихвата као саставни део уговора закљученог  са инвеститором и обавезује се да их прими без икаквог ограничења и изврши без приговора и рекламације."]

{"sheet":"0_PRIPREMNO_ZAVRSNI","index":1,"n_rows":19,"n_cols":6,"rows_kept":19,"merged":[[18,0,18,3]]}
[null,"PRIPREMNO ZAVRŠNI RADOVI"]
[]
["redni broj","opis pozicije","jed mer","količina","jedinična cena [RSD]","ukupna cena [RSD]"]
["I","II","III","IV","V","VI"]
[]
[{"v":1,"d":"00-01"},"FORMIRANJE GRADILIŠTA                                                      \nPre početka bilo kojih drugih radova, Izvođač je u obavezi da preduzme sve neophodne pripreme za obezbeđivanje smeštaja, održavanja i uklanjanja potrebnih instalacija i uređaja i snabdevanje električnom energijom (za rad mašina i rasvete). Izvođač će obezbediti sigurnost objekata i imovine i sprečiti neovlašćeni pristup gradilištu, vodeći računa da svi radovi budu u potpunosti u skladu sa projektnom dokumentacijom i ugovorenom dinamikom.\nU okviru ove pozicije potrebno je izvršiti propisno ograđivanje i obeležavanje lokacije na kojoj se izvode radovi, definisati i obeležiti opasne zone kretanja.\nIzraditi i postaviti \"gradjevinsku\" tablu, koja treba da sadrži EU PRO Plus logo (obaveštenje o izvodjenju radova), u skladu sa Pravilnikom o izgledu, sadržini i mestu postavljanja gradjevinske table (\"Sl. glasnik RS\", br. 97/2023). Detaljan izgled i sadržaj će biti naknadno dostavljen izabranom izvodjaču radova. \nObračun paušalno.","pauš.",{"v":1,"d":"1.00"},null,{"$f":"D6*E6","v":{"v":0,"d":"0.00"}}]
[{"v":2,"d":"00-02"},"Otvaranje gradilišta, prijava radova nadležnoj inspekciji,\nizrada elaborata BZR, otvaranje knjige inspekcije i građevinskog dnevnika, upoređivanje projektne dokumentacije sa stvarnim izvedenim stanjem na terenu.","pauš.",{"v":1,"d":"1.00"},null,{"v":0,"d":"0.00"}]
[{"v":3,"d":"00-03"},"Spoljni i unutrašnji transport i skladištenje na gradilištu materijala i opreme, razmeravanje i obeležvanje trasa, usklađivanje trasa sa ostalim instalacijama.","pauš.",{"v":1,"d":"1.00"},null,{"v":0,"d":"0.00"}]
[{"v":4,"d":"00-04"},"Manji građevinski radovi u vidu bušenja otvora za prolaz cevi, štemovanja zidova za smeštaj ormarića i sl., izrada privremene zaštita izvedenih instalacija i sl.","pauš.",{"v":1,"d":"1.00"},null,{"v":0,"d":"0.00"}]
[{"v":5,"d":"00-05"},"Ispitivanja i merenja\n• Ispitivanje UGI na čvrstoću i nepropusnost\n• Ispitivanje toplovodne instalacije na hladni hidraulički pritisak\n• Ispitivanje freonskih instalacija\n• Topla i hladna proba\nPredvideti sva potrebna parcijalna ispitivanja, merenja i dokazivanja parametara. Nakon izvršenih merenja i ispitivanja izraditi odgovarajuće zapisnike koje overavaju Odgovorni izvođač radova i Stručni nadzor","pauš.",{"v":1,"d":"1.00"},null,{"v":0,"d":"0.00"}]
[{"v":6,"d":"00-06"},"Priprema atestno tehničke dokumentacije, izrada Projekta izvedenog objekta, učestvovanje u tehničkom prijemu.","pauš.",{"v":1,"d":"1.00"},null,{"v":0,"d":"0.00"}]
[{"v":7,"d":"00-07"},"POSTAVLJANJE STOJEĆE I ZIDNE PROJEKTNE TABLE\nObe table moraju biti dvojezične. Štampano rešenje tabli, izgled i sadržaj će biti naknadno dostavljeni odabranom izvodjaču radova."]
[null,"Projektna stojeća  tabla, sastoje se od glavnog rama, spoljnih dimenzija 1825 x 1625 mm koji se montra i fiksira na dve nogare, ukupne dužine 2730 mm. Detaljan tehnički opis sa grafičkim prilozima koji sadrže sve detalje tačnih dimenzija predmetne table, zahtevane materijale i način spajanja elemenata glavnog rama i njegovu montažu za nogare biće naknadno dostavljeni odabranom izvodjaču radova.\nZa postavljanje table je nephodno iskopati temeljnu jamu, dimenzija 120 x 120 cm, dubine 75 cm na koji će se postaviti temeljni ram centralno, vodeći računa o horizontalnosti. Detaljno upustvo za izadu temelja (specifikacija materijala koje je neophodno koristiti, vrsta betona, tehničke-grafički prilozi temeljnog rama) i montažu table biće naknadno dostavljeno odabranom izvodjaču radova."]
[null,"Projektna stojeća tabla treba da bude postavljena na vidljivom mestu - najbližem pešačkoj stazi/putu na lokalitetu na kome su izvedeni radovi izgradnje, u svemu prema naknadnom uputstvu. Tačna lokacija biće definisana na terenu. U slučaju potrebe, obaveza izvođača je obezbedi sve potrebne dozvole za postavljanje na vidljivom mestu."]
[null,"Projektna zidna tabla spoljnih dimenzija cca 350 x 275 mm od materijala Alubond 4 mm / 0,30 mm, sa direktnom UV štampa u boji  biće montirana na vidljivom mestu, bez bušenja, sa 3M GPH 110 VHB, 1,1 mm montažnom trakom ili vrlo sličnih karakteristika, a u svemu prema detalnoj specifikaciji i uputstvu koja će  biti dostavljena odabranom izvodjaču radova. Tačna lokacija – položaj projektne zidne table biće definisana na terenu."]
[null,"Obračun po paru.","par.",{"v":1,"d":"1.00"},null,{"$f":"D16*E16","v":{"v":0,"d":"0.00"}}]
[{"v":8,"d":"00-08"},"Zatvaranje gradilišta, čišćenje gradilišta, predaja objekta investitoru, izdavanje garantnih listova.","pauš.",{"v":1,"d":"1.00"},{"v":22,"d":"22.00"}]
[]
["UKUPNO PRIPREMNO ZAVRŠNI RADOVI",{"$nulls":3},"Ukupno din.",{"$f":"SUM(F6:F17)","v":0}]

{"sheet":"I_GRAĐEVINSKI_GZ","index":2,"n_rows":389,"n_cols":7,"rows_kept":389,"merged":[[16,0,16,6],[20,0,20,5],[55,2,55,4],[90,2,90,4],[205,2,205,3],[211,2,211,3],[271,2,271,3],[363,2,363,4],[388,1,388,4],[391,2,391,5]]}
{"$rows_empty":18}
["RED. BR.","ŠIFRA \nPOZ.","OPIS","J.M.","KOLIČINA","JED. CENA                 (BEZ PDV-a)","IZNOS (BEZ PDV-a)"]
[]
["I GRAĐEVINSKI I GRAĐEVINSKO-ZANATSKI RADOVI"]
[]
[null,{"v":100,"d":"01-00"},"ZEMLJANI RADOVI "]
[]
[1,{"$f":"B23+1","v":{"v":101,"d":"01-01"}},"Raščišćavanje terena sa skidanjem šiblja, niskog rastinja i sešenjem stabala prešnika 10cm sa odvozom na deponiju do pet kilometara daljine i obeležavanjem objekta."]
[null,null,"Obračun po m2 komplet izvedene pozicije."]
[{"$nulls":3},"m2",{"v":500,"d":"500.0"},null,{"$f":"E27*F27","v":0}]
[{"$nulls":6},0]
[{"$f":"A25+1","v":2},{"$f":"B25+1","v":{"v":102,"d":"01-02"}},"Skidanje površinskog sloja terena humusa sa odvozom na deponiju do 500 metara daljine. Teren se skida u sloju od 30 cm, mašinskim putem.",{"$nulls":3},0]
[null,null,"Obračun po m2 komplet izvedene pozicije, mereno u samoniklom stanju.",{"$nulls":3},0]
[{"$nulls":3},"m3",{"v":125,"d":"125.0"},null,0]
[{"$nulls":6},0]
[{"$f":"A29+1","v":3},{"$f":"B29+1","v":{"v":103,"d":"01-03"}},"Iskop zemlje za temeljne trake mašinskim putem, treća kategorija zemljišta. Dubina iskopa oko 140cm.U cenu je uračunat iskop, poravnavanje i čišćenje dna iskopa i stranica sa odbacivanjem materijala.\nOdvoz materijala se posebno obracunava. ",{"$nulls":3},0]
[null,null,"Obračun po m3 izvedene pozicije, mereno u samoniklom stanju. "]
[{"$nulls":3},"m3",{"v":121,"d":"121.0"},null,{"$f":"E35*F35","v":0}]
[{"$nulls":6},{"$f":"E36*F36","v":0}]
[{"$f":"A33+1","v":4},{"$f":"B33+1","v":{"v":104,"d":"01-04"}},"Nivelisanje dna temeljne jame sa dozvoljenim odstupanjem + 3 cm i sa obradom podtla.",{"$nulls":3},{"$f":"E37*F37","v":0}]
[null,null,"Obračun po m2 komplet izvedene pozicije."]
[{"$nulls":3},"m2",{"v":80,"d":"80.0"},null,{"$f":"E39*F39","v":0}]
[{"$nulls":6},{"$f":"E40*F40","v":0}]
[{"$f":"A37+1","v":5},{"$f":"B37+1","v":{"v":105,"d":"01-05"}},"Nasipanje i zbijanje selektiranog drobinskog materijala iz iskopa oko temelja u slojevima od po 20 santimetara sa potrebnim kvašenjem i nabijanjem, (95% po Proktoru, ukoliko geomehaničkim elaboratom nije drugačije određeno).",{"$nulls":3},{"$f":"E41*F41","v":0}]
[null,null,"Obračun po m3 kompet izvedene pozicije."]
[{"$nulls":3},"m3",{"v":65,"d":"65.0"},null,{"$f":"E43*F43","v":0}]
[{"$nulls":6},{"$f":"E44*F44","v":0}]
[{"$f":"A41+1","v":6},{"$f":"B41+1","v":{"v":106,"d":"01-06"}},"Nabavka, transport, razastiranje i nabijanje sloja prirodnog šljunka ispod temeljnih traka\nI podne ploce  u sloju d = 15 cm.",{"$nulls":3},{"$f":"E45*F45","v":0}]
[" ",null,"Obračun po m3 kompet izvedene pozicije.",{"$nulls":3},{"$f":"E46*F46","v":0}]
[{"$nulls":3},"m3",{"v":63,"d":"63.0"},null,{"$f":"E47*F47","v":0}]
[]
[{"$f":"A45+1","v":7},{"$f":"B45+1","v":{"v":107,"d":"01-07"}},"Odvoz viška materijala iz iskopa preostalog posle izvršenog nasipanja i nabijanja, kao i materijala nepodesnog za nasipanje. Odvoz se vrši kamionom do 10 kilometara daljine. ",{"$nulls":3},{"$f":"E49*F49","v":0}]
[null,null,"Obračun po m3 kompet izvedene pozicije.",{"$nulls":3},{"$f":"E50*F50","v":0}]
[{"$nulls":3},"m3",{"v":156,"d":"156.0"},null,{"$f":"E51*F51","v":0}]
[]
["UKUPNO",null,{"$f":"C23","v":"ZEMLJANI RADOVI "},null,{"v":100,"d":"01-00"},null,{"$f":"SUM(G27:G52)","v":0}]
[]
["\n02-00             BETONSKI I ARMIRANO BETONSKI RADOVI (GN 400)\n\n\n"]
[null,{"v":200,"d":"02-00"},"BETONSKI I ARMIRANO-BETONSKI RADOVI ",{"$nulls":3},{"$f":"E56*F56","v":0}]
[{"$nulls":6},{"$f":"E57*F57","v":0}]
[{"$f":"A49+1","v":8},{"$f":"B56+1","v":{"v":201,"d":"02-01"}},"Betoniranje armirano betonskih temeljnih  traka betonom MB-30, sa upotrebom potrebne oplate. "]
[null,null,"Obračun po m3 komplet izvedene pozicije."]
[{"$nulls":3},"m3",{"v":37,"d":"37.00"},null,{"$f":"E60*F60","v":0}]
[{"$nulls":6},{"$f":"E61*F61","v":0}]
[{"$f":"A58+1","v":9},{"$f":"B58+1","v":{"v":202,"d":"02-02"}},"Nabavka materijala, transport i betoniranje armirano betonske cokle d=20cm u glatkoj oplati. Marka betona je MB - 30. ",{"$nulls":3},{"$f":"E62*F62","v":0}]
[null,null,"Obračun po m3 komplet izvedene pozicije sa upotrebom oplate.",{"$nulls":3},{"$f":"E63*F63","v":0}]
[{"$nulls":3},"m3",{"v":4,"d":"4.00"},null,{"$f":"E64*F64","v":0}]
[]
[{"$f":"A62+1","v":10},{"$f":"B62+1","v":{"v":203,"d":"02-03"}},"Nabavka materijala, transport i betoniranje armirano betonskih stubova betonom MB 30 sa upotrebom glatke oplate.",{"$nulls":3},{"$f":"E66*F66","v":0}]
[null,null,"Obračun po m3 komplet izvedene pozicije sa upotrebom oplate.",{"$nulls":3},{"$f":"E67*F67","v":0}]
[{"$nulls":3},"m3",{"v":6,"d":"6.00"},null,{"$f":"E68*F68","v":0}]
[]
[{"$f":"A66+1","v":11},{"$f":"B66+1","v":{"v":204,"d":"02-04"}},"Nabavka materijala transport i betoniranje armirano betonskih greda betonom MB-30 zajedno sa potrebnom oplatom i podupiranjem. ",{"$nulls":3},{"$f":"E70*F70","v":0}]
[null,null,"Obračun po m3 komplet izvedene pozicije.",{"$nulls":3},{"$f":"E71*F71","v":0}]
[{"$nulls":3},"m3",{"v":20,"d":"20.00"},null,{"$f":"E72*F72","v":0}]
[]
[{"$f":"A70+1","v":12},{"$f":"B70+1","v":{"v":205,"d":"02-05"}},"Betoniranje armiranobetonskih ravnih ploča d=20cm betonom  MB-30 u glatkoj oplati, sa podupiranjem.",{"$nulls":3},{"$f":"E74*F74","v":0}]
[null,null,"Obračun po m3 komplet izvedene pozicije.",{"$nulls":3},{"$f":"E75*F75","v":0}]
[{"$nulls":3},"m3",{"v":101,"d":"101.00"},null,{"$f":"E76*F76","v":0}]
[]
[{"$f":"A74+1","v":13},{"$f":"B74+1","v":{"v":206,"d":"02-06"}},"Betoniranje  AB krovnog venca d=20cm, betonom  MB-30 u glatkoj oplati.",{"$nulls":3},{"$f":"E78*F78","v":0}]
[null,null,"Obračun po m3 komplet izvedene pozicije.",{"$nulls":3},{"$f":"E79*F79","v":0}]
[{"$nulls":3},"m3",{"v":16,"d":"16.00"},null,{"$f":"E80*F80","v":0}]
[]
[{"$f":"A78+1","v":14},{"$f":"B78+1","v":{"v":207,"d":"02-07"}},"Betoniranje armirano-betonskih kosih stepenišnih ploča zajedno sa stepenicima betonom MB-30 zajedno sa oplatom i podupiranjem.",{"$nulls":3},{"$f":"E82*F82","v":0}]
[null,null,"Obračun po m3 kompet izvedene pozicije."]
[{"$nulls":3},"m3",{"v":3,"d":"3.00"},null,{"$f":"E84*F84","v":0}]
[]
[{"$f":"A82+1","v":15},{"$f":"B82+1","v":{"v":208,"d":"02-08"}},"Betoniranje armirano-betonske podne ploce betonom MB-30.",{"$nulls":3},{"$f":"E86*F86","v":0}]
[null,null,"Obračun po m3 kompet izvedene pozicije."]
[{"$nulls":3},"m3",{"v":61,"d":"61.00"},null,{"$f":"E88*F88","v":0}]
[]
[]
["UKUPNO",null,"BETONSKI I ARMIRANO-BETONSKI RADOVI ",{"$nulls":3},{"$f":"SUM(G58:G90)","v":0}]
[]
[]
[null,{"v":300,"d":"03-00"},"ARMIRAČKI RADOVI",{"$nulls":3},{"$f":"E94*F94","v":0}]
[{"$nulls":6},{"$f":"E95*F95","v":0}]
[{"$f":"A86+1","v":16},{"$f":"B94+1","v":{"v":301,"d":"03-01"}},"Nabavka, transport,ispravljanje, sečenje, savijanje i ugradnja armature.\nNapomena: Količna armature je određena aproksimativno.",{"$nulls":3},{"$f":"E96*F96","v":0}]
[null,null,"Obračun po kilogramu kompet izvedene poz.",{"$nulls":3},{"$f":"E97*F97","v":0}]
[null,null,"Aproksimacija za sve vrste armature"]
[{"$nulls":3},"kg",{"v":27000,"d":"27,000.00"},null,{"$f":"E99*F99","v":0}]
[]
["UKUPNO",null,{"$f":"C94","v":"ARMIRAČKI RADOVI"},null,{"v":300,"d":"03-00"},null,{"$f":"SUM(G99:G100)","v":0}]
[]
[]
[null,{"v":400,"d":"04-00"},"ZIDARSKI RADOVI",{"$nulls":3},{"$f":"E104*F104","v":0}]
[{"$nulls":6},{"$f":"E105*F105","v":0}]
[{"$f":"A96+1","v":17},{"$f":"B104+1","v":{"v":401,"d":"04-01"}},"Nabavka materijala, transport i zidanje fasadnih i unutrašnjih zidova d = 20 cm šupljim glinenim blokovima MO 150 u produžnom malteru 1:2:6.                                                      ",{"$nulls":3},{"$f":"E106*F106","v":0}]
[null,null,"Obračun po m3 komplet izvedene pozicije.                            "]
[{"$nulls":3},"m3",{"v":86,"d":"86.00"},null,{"$f":"E108*F108","v":{"v":0,"d":"0.00"}}]
[]
[{"$f":"A106+1","v":18},{"$f":"B106+1","v":{"v":402,"d":"04-02"}},"Zidanje pregradnih  d=12 cm punom opekom, MO 150, u produžnom malteru 1:2:6. U visini vrata se radi armirano betonski-serklaž visine 22 cm armiran sa četiri šipke fi 10 mm. Beton je MB 20."," ",null,null,{"$f":"E110*F110","v":{"v":0,"d":"0.00"}}]
[null,null,"Obračun po m2 komplet izvedene pozicije.                            "]
[{"$nulls":3},"m2",{"v":175,"d":"175.00"},null,{"$f":"E112*F112","v":{"v":0,"d":"0.00"}}]
[]
[{"$f":"A110+1","v":19},{"$f":"B110+1","v":{"v":403,"d":"04-03"}},"Malterisanje plafona prod. malterom 1:2:6 u dva sloja, grubo i fino, d = 2.0 cm, sa prethodno prskanom podlogom od retkog cementnog maltera spravljenog od sejanog šljunka.",{"$nulls":3},{"$f":"E114*F114","v":{"v":0,"d":"0.00"}}]
[null,null,"Obračun po m2 komplet izvedene pozicije."]
[{"$nulls":3},"m2",248,null,{"$f":"E116*F116","v":{"v":0,"d":"0.00"}}]
[]
[{"$f":"A114+1","v":20},{"$f":"B114+1","v":{"v":404,"d":"04-04"}},"Malterisanje zidova od opeke i glinenih blokova  prod. malterom 1:2:6 u dva sloja, d = 2.0 cm, grubo i fino.",{"$nulls":3},{"$f":"E118*F118","v":{"v":0,"d":"0.00"}}]
[null,null,"Obračun po m2 komplet izvedene pozicije."]
[{"$nulls":3},"m2",1200,null,{"$f":"E120*F120","v":{"v":0,"d":"0.00"}}]
[{"$nulls":6},{"$f":"E121*F121","v":{"v":0,"d":"0.00"}}]
[{"$f":"A118+1","v":21},{"$f":"B118+1","v":{"v":405,"d":"04-05"}},"Izrada cementne košuljice - estriha kao podloge ispod završnog poda.",{"$nulls":3},{"$f":"E122*F122","v":{"v":0,"d":"0.00"}}]
[null,null,"Obračun po m2 komplet izvedene pozicije.",{"$nulls":3},{"$f":"E123*F123","v":{"v":0,"d":"0.00"}}]
[{"$nulls":3},"m2",{"v":510,"d":"510.0"},null,{"$f":"E124*F124","v":{"v":0,"d":"0.00"}}]
[]
[]
["UKUPNO",null,{"$f":"C104","v":"ZIDARSKI RADOVI"},null,{"v":400,"d":"04-00"},null,{"$f":"SUM(G107:G125)","v":0}]
[]
[]
[null,{"v":500,"d":"05-00"},"TESARSKI RADOVI",{"$nulls":3},{"$f":"E130*F130","v":0}]
[]
[{"$f":"A122+1","v":22},{"$f":"B130+1","v":{"v":501,"d":"05-01"}},"Izrada i montaža klasične drvene krovne konstrukcije od čamove građe po dimenzijama iz statičkog proračuna. Drvo je potrebno zaštititi vatrootpornim premazom. Vatrootporni premaz treba da bude vatrootpornosti 45 min., i da bude atestiran u ovlašćenoj domaćoj instituciji.\n",{"$nulls":3},{"$f":"E132*F132","v":0}]
[null,null,"Obračunava se po m2 komplet izvedene horizontalne projekcije krova."]
[{"$nulls":3},"m2",{"v":332,"d":"332.0"},null,{"$f":"E134*F134","v":0}]
[]
[{"$f":"A132+1","v":23},{"$f":"B132+1","v":{"v":502,"d":"05-02"}},"Izrada daščane oplate od dasaka debljine         d=2.4 cm kao podloge ispod krovnih pokrivača."]
[null,null,"Obračunava se po m2 izvedene pozicije mereno po kosini."]
[{"$nulls":3},"m2",{"v":333,"d":"333.0"},null,{"$f":"E138*F138","v":0}]
[]
[]
["UKUPNO",null,{"$f":"+C130","v":"TESARSKI RADOVI"},null,{"v":500,"d":"05-00"},null,{"$f":"SUM(G134:G140)","v":0}]
[]
[]
[null,{"v":600,"d":"06-00"},"KROVOPOKRIVAČKI RADOVI "]
[{"$nulls":6},{"$f":"E145*F145","v":0}]
[{"$f":"A136+1","v":24},{"$f":"B144+1","v":{"v":601,"d":"06-01"}},"Pokrivanje krovnih površina ravnim pocinkovanim bojenim limom d = 0.6mm koji se  postavlja preko daščane podloge i sloja kondora što je posebno obračunato. Cenom obuhvatiti sve opšave po ivicama krova, veze sa olukom i prodore instalacionih cevi.",{"$nulls":3},{"$f":"E146*F146","v":0}]
[null,null,"Obračunava se po m2 pokrivene površine mereno po kosini krova."]
[{"$nulls":3},"m2",{"v":333,"d":"333.0"},null,{"$f":"E148*F148","v":0}]
[]
[]
["UKUPNO",null,{"$f":"C144","v":"KROVOPOKRIVAČKI RADOVI "},null,{"v":600,"d":"06-00"},null,{"$f":"SUM(G148:G150)","v":0}]
[]
[]
[null,{"v":700,"d":"07-00"},"IZOLATERSKI RADOVI"]
[]
[{"$f":"A146+1","v":25},{"$f":"B154+1","v":{"v":701,"d":"07-01"}},"Nabavka i postavljanje horizontalne hidroizolacije AB podne ploče po tehnologiji firme Sika, Švajcarska."]
[null,null,"Obračunava se po m2 kompletno gotove hidroizolacije."]
[{"$nulls":3},"m2",{"v":350,"d":"350.0"},null,{"$f":"E158*F158","v":0}]
[]
[{"$f":"A156+1","v":26},{"$f":"B156+1","v":{"v":702,"d":"07-02"}},"Izrada hidroizolacije krova preko daščane podloge(ispod lima kojim se pokriva objekat)\nHidroizolacija se izvodi od kondora 3. "]
[null,null,"Obračun po m2 komplet izvedene pozicije."]
[{"$nulls":3},"m2",{"v":333,"d":"333.0"},null,{"$f":"E162*F162","v":0}]
[]
[{"$f":"A160+1","v":27},{"$f":"B160+1","v":{"v":703,"d":"07-03"}},"Izrada hidroizolacije podova mokrih čvorova. Preko pripremljene i očišćene podloge izvesti hidroizolaciju u sledećim slojevima:\n- hladan premaz bitulitom A\n- vruć namaz bitumenom PK-85/25"]
[null,null,"- bitumenska traka d = min. 4 mm sa uloškom od staklenog voala ili tkanine sa posipom od peska\n- vruć namaz bitumenom PK-85/25\nHidroizolaciju uzdići uz zidove min. 20 cm što je obuhvaćeno cenom."]
[null,null,"Obračunava se po m2 kompletno gotove hidroizolacije."]
[{"$nulls":3},"m2",{"v":37,"d":"37.0"},null,{"$f":"E167*F167","v":0}]
[]
[{"$f":"A164+1","v":28},{"$f":"B164+1","v":{"v":704,"d":"07-04"}},"Izrada termoizolacije podova prizemlja  pločama URSA TSP debljine 10cm  u svemu prema projektu i detaljima iz projekta                                                                                                                                                                                                                                                                         "]
[null,null,"Obračun po m2 kompet izvedene pozicije."]
[{"$nulls":3},"m2",{"v":300,"d":"300.0"},null,{"$f":"E171*F171","v":0}]
[]
[{"$f":"A169+1","v":29},{"$f":"B169+1","v":{"v":705,"d":"07-05"}},"Izrada termoizolacije podova galerije pločama URSA TSP debljine 3cm  u svemu prema projektu i detaljima iz projekta                                                                                                                                                                                                                                                                         "]
[null,null,"Obračun po m2 kompet izvedene pozicije."]
[{"$nulls":3},"m2",{"v":210,"d":"210.0"},null,{"$f":"E175*F175","v":0}]
[{"$f":"A173+1","v":30},{"$f":"B173+1","v":{"v":706,"d":"07-06"}},"Nabavka, transport i postavljanje termoizolacije krova od ploča mineralne vune debljine 22cm iznad krovne tavanice."]
[null,null,"Obračun po m2 komplet izvedene pozicije."]
[{"$nulls":3},"m2",{"v":333,"d":"333.0"},null,{"$f":"E178*F178","v":0}]
[]
[{"$f":"A176+1","v":31},{"$f":"B176+1","v":{"v":707,"d":"07-07"}},"Nabavaka, transport i ugradnja termoizolacije fasadnih zidova od mineralne vune, debljine d = 10 cm, prema standardu SRPS EN 13501 - teško zapaljiv oznake B-s2,d1"]
[null,null,"Obračun po m2 komplet izvedene poz."]
[{"$nulls":3},"m2",{"v":150,"d":"150.0"},null,{"$f":"E182*F182","v":0}]
[]
[{"$f":"A180+1","v":32},{"$f":"B180+1","v":{"v":708,"d":"07-08"}},"Nabavaka, transport i ugradnja termoizolacije fasadnih zidova od mineralne vune, debljine d = 15 cm,  prema standardu SRPS EN 13501 - teško zapaljiv oznake B-s2,d1"]
[null,null,"Obračun po m2 komplet izvedene poz."]
[{"$nulls":3},"m2",{"v":366,"d":"366.0"},null,{"$f":"E186*F186","v":0}]
[]
[]
["UKUPNO",null,{"$f":"C154","v":"IZOLATERSKI RADOVI"},null,{"v":700,"d":"07-00"},null,{"$f":"SUM(G156:G186)","v":0}]
[]
[]
[null,{"v":800,"d":"08-00"},"BRAVARSKI RADOVI"]
[]
[null,null,"Unutrašnja stolarija"]
[]
[null,"08-01-P","Nabavka, transport i ugradnja unutrašnjih jednokrilnih protivpožarnih vrata otpornih na požar 90min. "]
[null,null,"II.P. dim. 89/205 cm","kom",{"v":1,"d":"1.0"},null,{"$f":"E197*F197","v":0}]
[]
[{"$f":"A180+1","v":32},{"$f":"B192+1","v":{"v":801,"d":"08-01"}},"Nabavka, transport i ugradnja unutrašnjih jednokrilnih vrata od Al profila."]
[null,null,"I. dim. 69/205 cm","kom",{"v":7,"d":"7.0"},null,{"$f":"E200*F200","v":0}]
[null,null,"II. dim. 89/205 cm","kom",{"v":10,"d":"10.0"},null,{"$f":"E201*F201","v":0}]
[null,null,"III. dim. 99/205 cm","kom",{"v":4,"d":"4.0"},null,{"$f":"E202*F202","v":0}]
[]
[{"$f":"A199+1","v":33},{"$f":"B199+1","v":{"v":802,"d":"08-02"}},"Nabavka, transport i ugradnja unutrašnjih \ndvokrilnih vrata od Al profila. "]
[null,null,"Vrata su snabdevena kompletnim potrebnim okovom."]
[null,null,"Obračun po komadu komplet izvedene poz."]
[null,null,"IV.dim. 178/225 cm \n","kom",{"v":2,"d":"2.0"},null,{"$f":"E207*F207","v":0}]
[null,null,"V.dim. 218/308 cm \n","kom",{"v":1,"d":"1.0"},null,{"$f":"E208*F208","v":0}]
[]
[{"$f":"A204+1","v":34},{"$f":"B204+1","v":{"v":803,"d":"08-03"}},"Nabavka, transport i ugradnja unutrašnjih \ndvokrilnih vrata I dva fiksna dela od Al profila. "]
[null,null,"Vrata su snabdevena kompletnim potrebnim okovom."]
[null,null,"Obračun po komadu komplet izvedene poz."]
[null,null,"VI.dim. 155+218+155/308 cm \n","kom",{"v":1,"d":"1.0"},null,{"$f":"E213*F213","v":0}]
[]
[null,null,"Spoljna stolarija"]
[]
[{"$f":"A210+1","v":35},{"$f":"B210+1","v":{"v":804,"d":"08-04"}},"Nabavka, transport i ugradnja jednokrilnih zastakljenih ulaznih vrata od Al profila."]
[null,null,"Obračun po komadu komplet izvedene poz."]
[null,null,"1. dim. 97/307cm             \n","kom",{"v":1,"d":"1.0"},null,{"$f":"E219*F219","v":0}]
[]
[{"$f":"A217+1","v":36},{"$f":"B217+1","v":{"v":805,"d":"08-05"}},"Nabavka, transport i ugradnja spoljašnjih \ndvokrilnih vrata I dva fiksna dela od Al profila. "]
[null,null,"9. dim. 507/287 cm.                   ","kom",{"v":1,"d":"1.0"},null,{"$f":"E222*F222","v":0}]
[]
[{"$f":"A217+1","v":36},{"$f":"B221+1","v":{"v":806,"d":"08-06"}},"Nabavka, transport i ugradnja jednokrilnih, zastakljenih prozora od Al profila."]
[null,null,"2.1. dim. 97/307 cm.                   ","kom",{"v":1,"d":"1.0"},null,{"$f":"E225*F225","v":0}]
[null,null,"2.2. dim. 97/247 cm.                   ","kom",{"v":2,"d":"2.0"},null,0]
[null,null,"3.1. dim. 107/307 cm.                   ","kom",{"v":1,"d":"1.0"},null,0]
[null,null,"3.2. dim. 107/307 cm.                   ","kom",{"v":1,"d":"1.0"},null,0]
[null,null,"3.3. dim. 107/247 cm.                   ","kom",{"v":2,"d":"2.0"},null,0]
[null,null,"4.1. dim. 135/307 cm.                   ","kom",{"v":4,"d":"4.0"},null,0]
[null,null,"4.2. dim. 135/247 cm.                   ","kom",{"v":3,"d":"3.0"},null,0]
[null,null,"4.3. dim. 135/247 cm.  (otvor za provetravanje - odvođenje dima i toplote stepeništa)                 ","kom",{"v":1,"d":"1.0"},null,0]
[]
[{"$f":"A224+1","v":37},{"$f":"B224+1","v":{"v":807,"d":"08-07"}},"Izrada i montaža staklene zavese od\nbojenih aluminijumskih profila u svemu prema šemama bravarije."]
[null,null,"5. dim. 202/307 cm.                   ","kom",{"v":2,"d":"2.0"},null,{"$f":"E235*F235","v":0}]
[null,null,"6. dim. 252/307 cm.                   ","kom",{"v":1,"d":"1.0"},null,0]
[null,null,"7.1. dim. 450/307 cm.                   ","kom",{"v":1,"d":"1.0"},null,0]
[null,null,"7.2. dim. 450/287 cm.                   ","kom",{"v":1,"d":"1.0"},null,0]
[null,null,"8.1. dim. 502/307 cm.                   ","kom",{"v":1,"d":"1.0"},null,0]
[null,null,"8.2. dim. 502/287 cm.                   ","kom",{"v":1,"d":"1.0"},null,0]
[null,null,"10.1. dim. 547/307 cm.                   ","kom",{"v":1,"d":"1.0"},null,0]
[null,null,"10.2. dim. 547/287 cm.                   ","kom",{"v":1,"d":"1.0"},null,0]
[null,null,"11. dim. 587/247 cm.                   ","kom",{"v":1,"d":"1.0"},null,0]
[]
[{"$f":"A234+1","v":38},{"$f":"B234+1","v":{"v":808,"d":"08-08"}},"Nabavka materijala, transport i ugradnja stepenišne ograde - rukohvata."]
[null,null,"Rukohvat se radi od čeličnog profila standardnim postupkom: zatvaranjem svih šupljih profila - kutija i cevi."]
[null,null,"Obračun po m1 komplet izvedene poz."]
[{"$nulls":3},"m1",{"v":7,"d":"7.0"},null,{"$f":"E248*F248","v":0}]
[]
[{"$f":"A245+1","v":39},{"$f":"B245+1","v":{"v":809,"d":"08-09"}},"Nabavka materijala, transport i ugradnja stepenišne ograde."]
[null,null,"Ograda se radi od čeličnih profila standardnim postupkom: zatvaranjem svih šupljih profila - kutija i cevi."]
[null,null,"Obračun po m1 komplet izvedene poz."]
[{"$nulls":3},"m1",1.6,null,{"$f":"E253*F253","v":0}]
[]
[{"$f":"A250+1","v":40},{"$f":"B250+1","v":{"v":810,"d":"08-10"}},"Nabavka, transport i ugradnja metalne ograde  na galeriji."]
[null,null,"Ograda se radi od čeličnih profila standardnim postupkom: zatvaranjem svih šupljih profila - kutija i cevi."]
[null,null,"Obračun po m1 komplet izvedene poz."]
[{"$nulls":3},"m1",16.5,null,{"$f":"E258*F258","v":0}]
[]
[]
["UKUPNO",null,{"$f":"C192","v":"BRAVARSKI RADOVI"},null,{"v":800,"d":"08-00"},null,{"$f":"SUM(G192:G260)","v":0}]
[]
[]
[null,{"v":900,"d":"09-00"},"LIMARSKI RADOVI "]
[]
[{"$f":"A255+1","v":41},{"$f":"B264+1","v":{"v":901,"d":"09-01"}},"Izrada i montaža horizontalnih oluka-uvala, od bojenog pocinkovanog lima d = 0.6 mm, preko daščane podloge "]
[null,null,"Obračunava se po m1 komplet izvedene pozicije."]
[null,null,"Razvijene širine oko 65 cm"]
[{"$nulls":3},"m1",{"v":31,"d":"31.0"},null,{"$f":"E269*F269","v":0}]
[]
[{"$f":"A266+1","v":42},{"$f":"B266+1","v":{"v":902,"d":"09-02"}},"Izrada i montaža opšivke  AB venca od bojenog pocinkovanog lima d = 0.6 mm."]
[null,null,"Obračunava se po m1 komplet izvedene pozicije."]
[null,null,"Razvijene širine oko 60 cm"]
[{"$nulls":3},"m1",{"v":82,"d":"82.0"},null,{"$f":"E274*F274","v":0}]
[]
[{"$f":"A271+1","v":43},{"$f":"B271+1","v":{"v":903,"d":"09-03"}},"Izrada i montaža odvodnih olučnih vertikala od bojenog pocinkovanog lima d = 0.55 mm."]
[null,null,"Obračunava se po m1 komplet izvedene pozicije."]
[{"$nulls":3},"m1",{"v":14,"d":"14.0"},null,{"$f":"E278*F278","v":0}]
[]
[]
["UKUPNO",null,"LIMARSKI RADOVI ",null,{"v":1000,"d":"10-00"},null,{"$f":"SUM(G269:G280)","v":0}]
[]
[]
[null,{"v":1000,"d":"10-00"},"FASADERSKI RADOVI"]
[]
[]
[{"$f":"A276+1","v":44},{"$f":"B284+1","v":{"v":1001,"d":"10-01"}},"Obrada fasade fasadnim premazom i završno obojen fasadnom bojom.",{"$nulls":3},{"$f":"E287*F287","v":0}]
[null,null,"Obračun po m2 komplet izvedene pozicije."]
[{"$nulls":3},"m2",{"v":303,"d":"303.00"},null,{"$f":"E289*F289","v":0}]
[]
[{"$f":"A287+1","v":45},{"$f":"B287+1","v":{"v":1002,"d":"10-02"}},"Obrada fasade aluminujumskim fasadnim letvama na podkonstrukciji. "]
[null,null,"Obračun po m2 komplet izvedene pozicije."]
[{"$nulls":3},"m2",{"v":141,"d":"141.00"},null,{"$f":"E293*F293","v":0}]
[]
[{"$f":"A291+1","v":46},{"$f":"B291+1","v":{"v":1003,"d":"10-03"}},"Obrada fasade granitnim pločama (listele)"]
[null,null,"Obračun po m2 komplet izvedene pozicije."]
[{"$nulls":3},"m2",{"v":136,"d":"136.00"},null,{"$f":"E297*F297","v":0}]
[]
[{"$f":"A295+1","v":47},{"$f":"B295+1","v":{"v":1004,"d":"10-04"}},"Montaža i demontaža cevaste fasadne skele oko objekta."]
[null,null,"Obračunava se po m2 vertikalne projekcije fasadne skele."]
[{"$nulls":3},"m2",{"v":635,"d":"635.00"},null,{"$f":"E301*F301","v":0}]
[]
[]
["UKUPNO",null,"FASADERSKI RADOVI",null,{"v":1000,"d":"10-00"},null,{"$f":"SUM(G289:G303)","v":0}]
[]
[]
[null,{"v":1100,"d":"11-00"},"KERAMIČARSKI RADOVI"]
[]
[{"$f":"A299+1","v":48},{"$f":"B307+1","v":{"v":1101,"d":"11-01"}},"Oblaganje podova ITISONOM. "]
[null,null,"Obračun po m2 komplet izvedene pozicije."]
[{"$nulls":3},"m2",{"v":45,"d":"45.0"},null,{"$f":"E311*F311","v":0}]
[]
[{"$f":"A309+1","v":49},{"$f":"B309+1","v":{"v":1102,"d":"11-02"}},"Oblaganje podova neglaziranim granitnim keramičkim pločicama boje i dimenzija prema izboru projektanta. Pločice se rade sa svim fazonskim komadima . "]
[null,null,"Obračun po m2 komplet izvedene pozicije."]
[{"$nulls":3},"m2",{"v":425,"d":"425.0"},null,{"$f":"E315*F315","v":0}]
[]
[{"$f":"A313+1","v":50},{"$f":"B313+1","v":{"v":1103,"d":"11-03"}},"Oblaganje podova  u sanitarnim čvorovima\njednobojnim glaziranim keramičkim pločicama dim. 20/20 cm, prve klase, domaće proizvodnje. Pločice se postavljaju na lepku. "]
[null,null,"Obračun po m2 komplet izvedene pozicije."]
[{"$nulls":3},"m2",{"v":37,"d":"37.0"},null,{"$f":"E319*F319","v":0}]
[]
[{"$f":"A317+1","v":51},{"$f":"B317+1","v":{"v":1104,"d":"11-04"}},"Oblaganje unutrašnjih stepeništa neglaziranim granitnim keramičkim pločicama u sloju cementnog maltera 1:3 u boji po izboru projektanta. "]
[null,null,"U cenu uračunati oblaganje stepenišne sokle granitnom keramikom visine 10cm."]
[null,null,"Obračun po m2 komplet izvedene pozicije."]
[{"$nulls":3},"m2",{"v":5,"d":"5.0"},null,{"$f":"E324*F324","v":0}]
[]
[{"$f":"A321+1","v":52},{"$f":"B321+1","v":{"v":1105,"d":"11-05"}},"Oblaganje zidnih površina u sanitarnim čvorovima keramičkim zidnim pločicama  prve klase, domaće proizvodnje. "]
[null,null,"Obračun po m2 komplet izvedene pozicije."]
[{"$nulls":3},"m2",{"v":156,"d":"156.0"},null,{"$f":"E328*F328","v":0}]
[]
[]
["UKUPNO:",null,{"$f":"C307","v":"KERAMIČARSKI RADOVI"},null,{"v":1100,"d":"11-00"},null,{"$f":"SUM(G311:G330)","v":0}]
[]
[]
[null,{"v":1200,"d":"12-00"},"SPUŠTENI PLAFONI"]
[]
[{"$f":"A326+1","v":53},{"$f":"B334+1","v":{"v":1201,"d":"12-01"}},"Nabavka, transport i montaža spuštenog plafona u izložbenom delu,lobiju,\nadministrativnom delu i sanitarnim čvorovima od gipskartonskih ploča d = 12.5 mm sa kačenjem o konstrukciju pomoću distancera i limenih profila.",{"$nulls":3},{"$f":"E336*F336","v":0}]
[null,null,"Obračunava se po m2 kompletno gotovog montiranog spuštenog plafona sa podkonstrukcijom i potrebnom skelom za rad."]
[{"$nulls":3},"m2",{"v":262,"d":"262.0"},null,{"$f":"E338*F338","v":0}]
[]
[]
["UKUPNO:",null,{"$f":"C334","v":"SPUŠTENI PLAFONI"},null,{"v":1300,"d":"13-00"},null,{"$f":"SUM(G338:G340)","v":0}]
[]
[]
[null,{"v":1300,"d":"13-00"},"MOLERSKO FARBARSKI RADOVI"]
[]
[{"$f":"A336+1","v":54},{"$f":"B344+1","v":{"v":1301,"d":"13-01"}},"Gletovanje plafona poligit masom u tri prevlačenja i kompletna priprema površina za  nanošenje boje. Posle pripreme podloge plafon se boji poludisperzivnom bojom u tonu po izboru projektanta. Radove izvesti u svemu prema opštem opisu i svim potrebnim predradnjama."]
[null,null,"Obračunava se po m2 komplet izvedenepozicije zajedno sa skelom."]
[{"$nulls":3},"m2",{"v":248,"d":"248.0"},null,{"$f":"E348*F348","v":0}]
[]
[{"$f":"A346+1","v":55},{"$f":"B346+1","v":{"v":1302,"d":"13-02"}},"Gletovanje zidova poligit masom u tri prevlačenja i kompletna priprema površina za  nanošenje boje. Posle pripreme podloge zid se boji poludisperzivnom bojom u tonu po izboru projektanta. Radove izvesti u svemu prema opštem opisu i svim potrebnim predradnjama."]
[null,null,"Obračunava se po m2 komplet izvedenepozicije zajedno sa skelom."]
[{"$nulls":3},"m2",{"v":1200,"d":"1200.0"},null,{"$f":"E352*F352","v":0}]
[]
[]
["UKUPNO",null,{"$f":"C344","v":"MOLERSKO FARBARSKI RADOVI"},null,{"v":1300,"d":"13-00"},null,{"$f":"SUM(G348:G354)","v":0}]
[]
[]
[]
[]
[null,null,"REKAPITULACIJA   RADOVA"]
[]
[null,{"v":100,"d":"01-00"},"ZEMLJANI RADOVI",{"$nulls":3},{"$f":"G53","v":0}]
[]
[null,{"v":200,"d":"02-00"},"BETONSKI I ARMIRANO-BETONSKI RADOVI ",{"$nulls":3},{"$f":"G91","v":0}]
[]
[null,{"v":300,"d":"03-00"},"ARMIRAČKI RADOVI",{"$nulls":3},{"$f":"G101","v":0}]
[]
[null,{"v":400,"d":"04-00"},"ZIDARSKI RADOVI",{"$nulls":3},{"$f":"G127","v":0}]
[]
[null,{"v":500,"d":"05-00"},"TESARSKI RADOVI",{"$nulls":3},{"$f":"G141","v":0}]
[]
[null,{"v":600,"d":"06-00"},"KROVOPOKRIVAČKI RADOVI",{"$nulls":3},{"$f":"G151","v":0}]
[]
[null,{"v":700,"d":"07-00"},"IZOLATERSKI RADOVI",{"$nulls":3},{"$f":"G189","v":0}]
[]
[null,{"v":800,"d":"08-00"},"BRAVARSKI RADOVI",{"$nulls":3},{"$f":"G261","v":0}]
[]
[null,{"v":900,"d":"09-00"},"LIMARSKI RADOVI",{"$nulls":3},{"$f":"G281","v":0}]
[]
[null,{"v":1000,"d":"10-00"},"FASADERSKI RADOVI",{"$nulls":3},{"$f":"G304","v":0}]
[]
[null,{"v":1100,"d":"11-00"},"KERAMIČARSKI RADOVI",{"$nulls":3},{"$f":"G331","v":0}]
[]
[null,{"v":1200,"d":"12-00"},"SPUŠTENI PLAFON",{"$nulls":3},{"$f":"G341","v":0}]
[]
[null,{"v":1300,"d":"13-00"},"MOLERSKO-FARBARSKI RADOVI",{"$nulls":3},{"$f":"G355","v":0}]
[]
[]
[null,"I GRAĐEVINSKI I GRAĐEVINSKO ZANATSKI RADOVI",{"$nulls":3},"Ukupno din.",{"$f":"SUM(G362:G388)","v":0}]

{"sheet":"II_VIK","index":3,"n_rows":373,"n_cols":7,"rows_kept":373,"merged":[[2,2,2,5],[107,2,107,4],[133,2,133,4],[157,2,157,4],[256,2,256,4],[357,2,357,4],[372,1,372,4]]}
[]
["RED. BR.","ŠIFRA \nPOZ.","OPIS","J.M.","KOLIČINA","JED. CENA                 (BEZ PDV-a)","IZNOS (BEZ PDV-a)"]
[null,null,"II VODOVOD I KANALIZACIJA"]
[]
[null,null,"I  PRETHODNI RADOVI"]
[]
[1,null,"Geodetsko obeležava trase cevovoda "]
[]
[null,null,"Na osnovu prenosa podataka iz projekta, izvršiti geodetsko obeležavanje cevovoda za izvodjenje sa svim usputnim objektima i uredjajima. Obaveza izvodjača je obezbedjenje i osiguranje tačaka tokom vremena izvodjanja radova. Sve razlike tokom obeležavanja koje su nastale iz opravdanih razloga ili po nalogu Nadzora, evidentirati"]
[null,null,"Geodetsko obeležavanje trase instalacije:"]
[null,null,"a) Sanitarna i hidrantska mreža","m'",{"v":70,"d":"70.00"},null,{"$f":"E11*F11","v":0}]
[null,null,"e) Atmosferska kanalizacija","m'",{"v":67,"d":"67.00"},null,{"$f":"E12*F12","v":0}]
[null,null,"f) Fekalna kanalizacija","m'",{"v":28,"d":"28.00"},null,{"$f":"E13*F13","v":0}]
[]
[2,null,"Razbijanje kolovoza i trotoara sa vraćanjem u provobitno stanje"]
[]
[null,null,"Na mestima obeleženog za polaganje cevovoda, izvršiti razbijanje postojeće kolovozne i trotoarske konstrukcije. Debljive kolovoza su do 12cm, debljine trotoara su do 8cm uključujući i behaton koji se ručno demontira - ukoliko postoji. Sva razbijanja izvršiti sa prethodnim dvostranim opsecanjem površine namenskim testerama za asfalt i beton, razbijanje pneumatskim alatima. Na delovima trotoarske površine, ručno izvršiti pažljivu demontažu sa odlaganjem behatona pored rova za naknadno vraćanje u probotno stanje - ukoliko behaton postoji. Prosečna širina opsecanja i razbijanje je 80cm. Asfaltiranje kolovoza u dva sloja: BNS22 d=6cm preko tucanika i AB11 d=5cm, betoniranje trotoara sa MB20 d=10cm preko šljunčane podloge i asfaltiranje trotoara sa AB8 d=3cm. Utovar i odvoz šuta obuhvaćeni cenom."]
[null,null,"a) Razbijanje, opsecanje i vraćanje u provobitno stanje asfaltnog kolovoza i trotoara","m'",{"v":20,"d":"20.00"},null,{"$f":"E18*F18","v":0}]
[]
["UKUPNO:",null,"PRETHOTNI RADOVI",null,"I",null,{"$f":"SUM(G10:G19)","v":0}]
[]
[]
[null,null,"II  GRAĐEVINSKI RADOVI"]
[]
[1,null,"Iskop rovova za polaganje cevovoda i šahtova"]
[]
[null,null,"Izvršiti ručni i mašinski iskop rova u zemlji III kategorije sa pravilnim odsecanjem bočnih strana i dna rova, a prema datom projektu. Sav materijal iz iskopa utovariti u vozilo i trasportovati na deponiju. Dno rova mora biti iskopano i poravnato prema kotama datim u projektu. Potrebno je striktno ostvarivanje pada‚ između zadatih tačaka. Duž trase uraditi proširenje za revizione silaze i vodomerna okna. U slučaju prekopa višak se mora popuniti nabijenim šljunkom o trošku izvođača. U slučaju posebnih uslova, materijala i teškoća koji izuskuju specijalni rad i oruđa, isti će se naknadno obračunavati u dogovoru sa nadzornim organom. Cenom obuhvaćeno razupiranje rovova"]
[null,null,"Obračunava se iplaća po m3 iskopane samonikle zemlje."]
[null,null,"- fekalna kanalizacija","m3",{"v":36,"d":"36.00"},null,{"$f":"E29*F29","v":0}]
[null,null,"- kišna kanalizacija","m3",{"v":103,"d":"103.00"},null,{"$f":"E30*F30","v":0}]
[null,null,"- vodovod i hidrantska mreža","m3",{"v":63,"d":"63.00"},null,{"$f":"E31*F31","v":0}]
[]
[2,null," Planiranje dna rova"]
[]
[null,null,"Po završenom iskopu izvršiti planiranje dna rova prema kotama datim u projektu. Sva prekopana mesta ispuniti nabijenim šljunkom o trošku izvođača."]
[null,null,"Obračunava se po m2 isplaniranog dna rova.","m2",{"v":98,"d":"98.00"},null,{"$f":"E36*F36","v":0}]
[]
[3,null,"Nasipanje peska"]
[]
[null,null,"Izvršiti nabavku i polaganje peska na dno rova, oko i iznad cevi u sloju min. debljine 10cm. Pesak ne sme biti od trošne stene niti imati imati krupne komade kamena ni grudve zemlje u sebi. Pesak mora biti čist, ujednačene granulacije, bez primesa organskih materija."]
[null,null,"Obračunava se i plaća po m3 peska u nabijenom stanju prema opštim uslovima i ovom opisu.","m3",{"v":45,"d":"45.00"},null,{"$f":"E41*F41","v":0}]
[]
[4,null,"Nasipanje šljunka ispod saobraćajnica i šahtova"]
[]
[null,null,"Popunjavanje rova ispod postojećih saobraćajnica izvršiti šljunkom ujednačene granulacije. Šljunak nasuti i ispod revizionih šahtova u visini od 10cm."]
[null,null,"Obračunava se i plaća po m3 ugrađenog i nabijenog šnjunka.","m3",{"v":1.5,"d":"1.50"},null,{"$f":"E46*F46","v":0}]
[]
[5,null,"Zatrpavanje rovova šljunkom ili tucanikom"]
[]
[null,null,"Posle završetka montaže, ispitivanja i premeravanja cevi, izvršiti zatrpavanje rovova šljunkovitim materijalom ili tucanikom uz nabijanje i kvašenje u slojevima po 20-30cm debljine do potpune zbijenosti na mestima kolovoza i pešačkih staza uz objekat. Pri zatrpavanju voditi računa da prvi sloj do cevovoda a preko peska bude sitna granulacija šljunka ili tucanika bez krupnih komada koji bi mogli da oštete cev."]
[null,null,"Obračunava se i plaća po m3 zemlje u nabijenom stanju.","m3",{"v":96,"d":"96.00"},null,{"$f":"E51*F51","v":0}]
[]
[6,null,"Zatrpavanje rovova zemljom iz iskopa"]
[]
[null,null,"Posle završetka montaže, ispitivanja i premeravanja cevi, izvršiti zatrpavanje rovova zemljom iz iskopa uz nabijanje i kvašenje u slojevima po 20-30cm debljine do potpune zbijenosti na mestima zelenih površina. Pri zatrpavanju voditi računa da prvi sloj do cevovoda a preko peska bude sitna granulacija šljunka ili tucanika bez krupnih komada koji bi mogli da oštete cev."]
[null,null,"Obračunava se i plaća po m3 zemlje u nabijenom stanju.","m3",{"v":64,"d":"64.00"},null,{"$f":"E56*F56","v":0}]
[]
[7,null,"Transport preostale zemlje"]
[]
[null,null,"Izvršiti transport komplet zemlje od iskopa na deponiju koja je za to određena. Cenom obuhvaćeno: utovar, transport, istovar i grubo planiranje na deponiji. Daljina transporta do 10km."]
[null,null,"Plaća se po m3 transportovane zemlje.","m3",{"v":138,"d":"138.00"},null,{"$f":"E61*F61","v":0}]
[]
[8,null,"Izrada kružnih revizionih okana"]
[]
[null,null,"Izvršiti montažu cilindričnih revizionih silaza sa unutrašnjim prečnikom 1.0m od prefabrikovanih (armiranih - nearmiranih) betonskih prstenova debljine zidova 10cm, betonom MB-30. Na dubini oko 1.0m ispod terena ugraditi prefabrikovani element koji cilindrični oblik postepeno sužavati ka jednoj vertikali zida do prečnika 60cm - prefabrikovani završni element. Po toj vertikalnoj strani silaza postaviti penjalice od livenog gvožđa na svakih 30cm. Malterisanje unutrašnjih površina šahta nije potrebno osim spojeva betonskih prstenova. Površina poda silaza - kineta, ne obračunava se u kubaturu već je obuhvaćena cenom."]
[null,null,"Obračunava se i plaća po m' ugradjenih prefabrikovanih betonskih prstenova."]
[null,null,"Ø1000  (n = 8 komada)","m'",{"v":12,"d":"12.00"},null,{"$f":"E67*F67","v":0}]
[]
[9,null,"Izrada  vodomernog šahta"]
[]
[null,null,"Izrada  vodomernog šahta dim 1,4x2,5x1,7. Pod uraditi od nabijenog betona  od nabijenog betona MB20 d=12cm u padu prema slivniku. Zidovi gornja ploča vodomernog šahta su od MB30 d=20cm. Zidovi i gornja ploča armirani armaturom RA400/500 i MAG 500/560. U gornjoj ploči ostaviti otvor 600 za šaht poklopac. U šahtu ugradito penjalice na 30 cm razmaka ."]
[null,null,"Obračunava se po komplet izvedenoh šahti","KOM",{"v":1,"d":"1.00"},null,{"$f":"E72*F72","v":0}]
[]
[10,null,"Izrada  betonskog slapišta"]
[]
[null,null,"Izrada  betonske građevine na mestu izliva kišne kanalizacije u recipijent. Radove izvesti po savetima i pod nadzorom Uprave za održavanje vodotokova ."]
[null,null,"Obračunava se po komplet izvedenoj građevini","KOM",{"v":2,"d":"2.00"},null,{"$f":"E77*F77","v":0}]
[]
[11,null,"Liveno gvozdeni poklopci"]
[]
[null,null,"Izvršiti nabavku i montažu kružnih liveno-gvozdenih poklopaca Ø600 iznad revizionih okana i vodomernog okna."]
[null,null,"Plaća se po komadu montiranog šaht poklopca."]
[null,null,"laki - 15kN","KOM",{"v":1,"d":"1.00"},null,{"$f":"E83*F83","v":0}]
[null,null,"teški - 25kN","KOM",{"v":8,"d":"8.00"},null,{"$f":"E84*F84","v":0}]
[]
[12,null,"Liveno gvozdene penjalice"]
[]
[null,null,"Izvršiti nabavku i montažu liveno-gvozdenih penjalica u vodovodnom šahtu i kanalizacionim revizionim šahtovima."]
[null,null,"Plaća se po komadu montirane penjalice.","KOM",{"v":35,"d":"35.00"},null,{"$f":"E89*F89","v":0}]
[]
[13,null,"Izrada kružnih slivničkih okana"]
[]
[null,null,"Izvršiti montažu betonskih bubanj slivnika na na kolovoznoj konstrukciji prečnika 450mm od prefabrikovanih (armiranih - nearmiranih) betonskih prstenova debljine zidova 6-8cm, betonom MB-30. Komplet bubanj slivnika (gajger slivnik) sastoji se od: temeljnog diska 600mm d=10cm, 2 vertikalne betonske cevi dužine 1000mm i rasteretne ploče nad slivnikom za ugradnju LG rešetke."]
[null,null,"Obračunava se i plaća po komplektu ugradjenih prefabrikovanih betonskih elemenata."]
[null,null,"- Bubanj slivnik","KOM",{"v":3,"d":"3.00"},null,{"$f":"E95*F95","v":0}]
[]
[14,null,"Liveno gvozdena slivničaka rešetka"]
[]
[null,null,"Izvršiti nabavku i montažu LG sivničke rešetke nad bubanj slivnikom tipa T-1, ugradjen u rasteretni prsten"]
[null,null,"Plaća se po komadu montiranog reštkastog slivnika."]
[null,null,"LG slivnik - T-1","KOM",{"v":3,"d":"3.00"},null,{"$f":"E101*F101","v":0}]
[]
[15,null,"Crpljenje stalne podzemne vode"]
[]
[null,null,"Ako se u toku rada pojavi stalna podzemna voda, mora se crpeti motornim pumpama. Nadzorni organ će voditi tačnu evidenciju o efektivnom radu pumpe."]
[null,null,"Obračunava se i plaća po efektivnom satu crpljenja.","čas",{"v":50,"d":"50.00"},null,{"$f":"E106*F106","v":0}]
[]
[null,null,"U K U P N O   G R A Đ E V I N S K I   R A D O V I :",{"$nulls":3},{"$f":"SUM(G28:G107)","v":0}]
[]
[null,null,"III  KANALIZACIJA"]
[]
[1,null,"Plastične PP kanalizacione cevi"]
[null,null,"Izvrštiti nabavku i montažu plastičnih PP kanalizacionih cevi koje se ugrađuju u objekat iznad terena. Cevi ispod svakog mufa pričvrstiti gvozdenim ram-šelnama. O tavanicu cev obesiti oko svakog mufa uzengijom od pljošteg gvožđa 3/40mm. Sva potrebna štemovanja i probijanja zidova od opeke i betona ne plaćaju se odvojeno već su obuhvaćena cenom dužnog metra cevi. Nedovršene delove mreže, veze za vertikale ili sanitarne objekte do njihovog ugrađivanja zatvoriti privremenim drvenim ili plastičnim čepovima odgovarajućeg prečnika."]
[null,null,"Obračuva se i plaća po m' motirane i ispitane mreže, mereno po osovini cevi i fazonskih komada."]
[null,null,"Ø160 - fekalna kanalizacija","m'",{"v":25,"d":"25.00"},null,{"$f":"E115*F115","v":0}]
[null,null,"Ø110 - fekalna kanalizacija","m'",{"v":30,"d":"30.00"},null,{"$f":"E116*F116","v":0}]
[null,null,"Ø75 - fekalna kanalizacija","m'",{"v":2,"d":"2.00"},null,{"$f":"E117*F117","v":0}]
[null,null,"Ø50 - fekalna kanalizacija","m'",{"v":12,"d":"12.00"},null,{"$f":"E118*F118","v":0}]
[]
[2,null,"Plastične kanalizacione cevi od tvrdog PVC - a"]
[]
[null,null,"Izvršiti nabavku i montažu plastičnih cevi za polaganje u zemlju, koje odgovaraju važećim standardima. Na svim mestima određenim projektom postaviti odgovarajuće fazonske i revizione komade. Pre zatrpavanja celu kanalizacionu mrežu ispitati na vodoizdržljivost u prisustvu nadzornog organa."]
[null,null,"Obračunava se i plaća po metru dužnom montirane i ispitane mreže, mereno po osovini cevi i fazonskih komada."]
[null,null,"Ø200","m'",{"v":16,"d":"16.00"},null,{"$f":"E124*F124","v":0}]
[null,null,"Ø160","m'",{"v":112,"d":"112.00"},null,{"$f":"E125*F125","v":0}]
[null,null,"Ø125 ","m'",{"v":6,"d":"6.00"},null,{"$f":"E126*F126","v":0}]
[]
[]
[3,null,"Ventilacione glave od PVC - a"]
[null,null,"Izvršiti naavku i montažu ventilacionih glava od polivinilhlorida na mestima datim projektom na krovnim ravnima."]
[null,null,"Obračunava se i plaća po montiranom komadu ventilacione glave."]
[null,null,"Ø110","kom",{"v":3,"d":"3.00"},null,{"$f":"E132*F132","v":0}]
[]
[4,null,"Olučnjak - Ø125"]
[null,null,"Izvršiti nabavku i montažu livenog ili PE (\"HL\") olučnjaka Ø125 za ugradnju na dnu olučnih vertikala."]
[null,null,"Plaća se po montiranom komadu olučnjaka.","kom",{"v":2,"d":"2.00"},null,{"$f":"E136*F136","v":0}]
[]
[5,null,"LG Olučne zaštitne vertikale - Ø125"]
[null,null,"Izvršiti nabavku i montažu livenog olučnog zaštitnog komada  DN125 spojenog na olučnjak Ø125 u nivou prizemlja za ugradnju na dnu olučnih vertikala. Olučnu zaštitnu cev fiksirati obujmicama za zid na najmanje dva mesta. Dužina olučne zaštitne vertikale je 2m i spojena je u delu mufa sa izvodom oluka sa svedenim elementom kružnog preseka sa potpunim dihtovanjem. LG Olučnu vertikalu uzemljiti."]
[null,null,"Plaća se po montiranom komadu olučne vertikale.","kom",{"v":2,"d":"2.00"},null,{"$f":"E140*F140","v":0}]
[]
[6,null,"Žablji poklopci"]
[null,null,"Nabavka iugradnja žabljih poklopaca na ispustu cevi kišne kanalizacije."]
[null,null,"Plaća se po montiranom komadužabljeg poklopca."]
[null,null,"Ø200","kom",{"v":1,"d":"1.00"},null,{"$f":"E145*F145","v":0}]
[null,null,"Ø160","kom",{"v":1,"d":"1.00"},null,{"$f":"E146*F146","v":0}]
[]
[7,null,"Separator benzina i ulja"]
[]
[null,null,"Izvršiti nabavku trasport i ugradnju separatora ulja - Hauraton AQUAFIX®SK2BP AB ili sličan -  koalescentni separator sa taložnikom i dvostrukim bajpasom 6- 10/100 l/s. Ulaz/Izlaz DN200, taložnik 1000l,kapacitet separisanih ulja 688l, D/Š/V:1,5/ 2,45/ 2,53, sa poklopcem klase D400.Masa 4720kg. Separator prema standardu EN558, klasa I"]
[null,null,"Plaća se po montiranom komadu spremnom za upotrebu.","kom",{"v":1,"d":"1.00"},null,{"$f":"E151*F151","v":0}]
[]
[8,null,"Priključak na gradsku kanalizaciju"]
[]
[null,null,"Izvršiti priključenje objekta na gradsku kanalizacionu mrežu prema uslovima JKP vodovod i kanalizacija. Svi priključci se vrše na projektovane šahtove planirane ulične fekalne i kišne kanalizacije."]
[null,null,"Plaća se po broju komplet izvedenih priključaka.","kom",{"v":1,"d":"1.00"},null,{"$f":"E156*F156","v":0}]
[]
[null,null,"U K U P N O    K A N A L I Z A C I J A :",{"$nulls":3},{"$f":"SUM(G114:G157)","v":0}]
[]
[null,null,"IV VODOVODNA MREŽA"]
[]
[1,null,"Polietilenske vodovodne cevi"]
[null,null,"Izvršiti nabavku i montažu PE cevi za montažu van objekta i za ulazne cevi do vodovodnih vertikala unutar objekta. Sve PE cevi su nazivog pritiska PN10bara. Cenom obuhvaćen sav prateći i spojno zaptvni materijal počev od mesta spoja, preko prodora u objektu do mesta račvanja unutar objekta na sanitarne i hidrantske sisteme"]
[null,null,"Ø110","m'",{"v":36,"d":"36.00"},null,{"$f":"E164*F164","v":0}]
[null,null,"Ø75","m'",{"v":18,"d":"18.00"},null,{"$f":"E165*F165","v":0}]
[null,null,"Ø25","m'",{"v":21,"d":"21.00"},null,{"$f":"E166*F166","v":0}]
[]
[2,null,"Liveno-gvozdene fazonski komadi i fazonerija"]
[null,null,"Izvršiti nabavku i montažu liveno-gvozdenih fazonskih komada  za montažu spoljnih hidranata na protivpožarni prsten i vodovodnog priključka za objekat i druge potrebe po projektu."]
[null,null,"fazonski komadi","kg",{"v":15,"d":"15.00"},null,{"$f":"E170*F170","v":0}]
[null,null,"Ventil DN100 na priključku + ugradbena garnitura + kapa","KOM",{"v":1,"d":"1.00"},null,{"$f":"E171*F171","v":0}]
[]
[3,null,"Polietilenske vodovodne cevi"]
[null,null,"Izvršiti nabavku i montažu polipropilenskih vodovodnih cevi sa svim odgovarajućim fitinzima PN10 SDR11. Cevi moraju da imaju sertifikat da se mogu koristiti kao cevi za transport pitke vode. Cevi za zidove moraju biti pričvršćene dvostrukim obujmicama na svakih 1,5-2,0m. Prilikom montaže neophodno je pridržavati se preporuka proizvodjača, posebno u vezi sa temperaturnim dilatacijama, kako u slobodnom prostoru (lire i aksijalni kompenzatori), tako i u zidovima (omotavanje cevi filcom i sl.). Celokupna vodovdna instalacija pre zatvaranja žljebova i malterisanja mora biti ispitana na pritisak od 12 bara prema važećim propisima."]
[null,null,"Obračunava se i plaća po metru dužnom montirane vodovodne cevi."]
[null,null," Dn 25x3.5       - unutrašnji prečnik 18.0","m'",{"v":4,"d":"4.00"},null,{"$f":"E176*F176","v":0}]
[null,null," Dn 20x2.8       - unutrašnji prečnik 14.4","m'",{"v":22,"d":"22.00"},null,{"$f":"E177*F177","v":0}]
[]
[4,null,"Čelično-pocinkovane vodovodne cevi"]
[null,null,"Izvršiti nabavku i montažu čelično pocinkovanih vodovodnih cevi sa svim odgovarajućim fitinzima. Cevi moraju da odgovaraju važećim propisima. Cevi za zidove moraju biti pričvršćene dvostrukim obujmicama na svakih 1,5-2,0m. Cevi u zemlji i kroz konstrukciju moraju biti premazane jedanput bitulitom, zatim bitumenom i obavijene bituminiziranom jutom. Razvod u zidu obavezno izolaovati ''dekorodal'' trakom ili filcom, tako da se izbegne svaki dodir sa malterom. Celokupna vodovdna instalacija pre zatvaranja žljebova i malterisanja mora biti ispitana na pritisak od 12 bara prema važećim propisima."]
[null,null,"Obračunava se i plaća po metru dužnom montirane vodovodne cevi."]
[null,null," Ø65","m'",{"v":2,"d":"2.00"},null,{"$f":"E182*F182","v":0}]
[null,null," Ø50","m'",{"v":11.2,"d":"11.20"},null,{"$f":"E183*F183","v":0}]
[]
[5,null,"Ravni propusni mesingani ventili i LG zatvarači"]
[null,null,"Izvršiti nabavku i montažu mesinganih ravnih propusnih ventila sa točkićem i LG zatvarača za zatvaranje kod vodomera, česmi, sektorskih grana i na drugim označenim mestima. "]
[null,null,"Plaća se po komadu montiranog ventila."]
[null,null,"Ø50","KOM",{"v":2,"d":"2.00"},null,{"$f":"E188*F188","v":{"v":0,"d":"0.00"}}]
[null,null,"Ø25","KOM",{"v":1,"d":"1.00"},null,{"$f":"E189*F189","v":{"v":0,"d":"0.00"}}]
[null,null,"Ø20","KOM",{"v":4,"d":"4.00"},null,{"$f":"E190*F190","v":{"v":0,"d":"0.00"}}]
[null,null,"Ø15","KOM",{"v":8,"d":"8.00"},null,{"$f":"E191*F191","v":{"v":0,"d":"0.00"}}]
[null,null,"Ø80 - LG","KOM",{"v":2,"d":"2.00"},null,{"$f":"E192*F192","v":{"v":0,"d":"0.00"}}]
[]
[6,null,"Ravni propusni ventil sa ogrankom za pražnjenje"]
[null,null,"Izvršiti nabavku i montažu mesinganih ravnih propusnih ventila za metalne cevi sa ogrankom za pražnjenje mreže unutar prostora Za smeštaj vodomera. "]
[null,null,"Plaća se po komadu montiranog ventila."]
[null,null,"Ø25","KOM",{"v":1,"d":"1.00"},null,{"$f":"E197*F197","v":0}]
[null,null,"Ø20","KOM",{"v":1,"d":"1.00"},null,{"$f":"E198*F198","v":0}]
[]
[7,null,"Propusni ventil za uzidanje sa kapom za PP cevi"]
[]
[null,null,"Izvršiti nabavki i montažu propusnih ventila sa kapom na mestima datim projektom. Dužinu kape odrediti na licu mesta, prema ugradjenoj keramici. Ventil mora odgovarati važećim standardima."]
[null,null,"Plaća se po komadu montiranog ventila."]
[null,null,"Dn25","KOM",{"v":1,"d":"1.00"},null,{"$f":"E204*F204","v":0}]
[null,null,"Dn20","KOM",{"v":8,"d":"8.00"},null,{"$f":"E205*F205","v":0}]
[]
[8,null,"Ugaoni ''EK'' sa kapom"]
[]
[null,null,"Izvršiti nabavku i montažu ugaonih ''EK'' ventila Ø15 sa kapom. Ventil mora odgovarati važećim standardima."]
[null,null,"Plaća se po komadu montiranog ventila.","KOM",{"v":16,"d":"16.00"},null,{"$f":"E210*F210","v":0}]
[]
[9,null,"Termička izolacija za PP i PCC vodovodne cevi"]
[]
[null,null,"Izvršiti nabavku i montažu termičke izolacije ''ARMACELL'' ili sl. za PP i PCC cevi na mreži hladne i hidrantske vode na mestima van zidova. Debljina izolacije 19mm."]
[null,null,"Obračunava se i plaća po m' montirane izolacije."]
[null,null,"za cevi Dn25","m'",{"v":4,"d":"4.00"},null,{"$f":"E216*F216","v":0}]
[null,null,"za cevi Dn20","m'",{"v":22,"d":"22.00"},null,{"$f":"E217*F217","v":0}]
[]
[10,null,"Vodomer"]
[]
[null,null,"Izvršiti nabavku i montažu baždarenog vodomera, dimenzija datih u projektu. Pozicijom su obuhvaćeni i skupljači nečistoće ispred vodomera, koji su istog prečnika kao i vodomeri."]
[null,null,"Obračunava se i plaća po komplet montiranom komadu."]
[null,null,"Ø80 za hidrantsku i sprinkler mrežu","KOM",{"v":1,"d":"1.00"},null,{"$f":"E223*F223","v":0}]
[null,null,"Ø20 za sanitarnu mrežu ","KOM",{"v":1,"d":"1.00"},null,{"$f":"E224*F224","v":0}]
[]
[11,null,"Požarni hidrant unutrašnji"]
[]
[null,null,"Izvršiti nabavku i montažu zidnog požarnog hidranta Ø52mm sa mlaznicom, crevom od trevire dužine 15m i ventilom ugrađenog u metalnu kutiju. Kutija mora biti vidno obojena i sa ključem."]
[null,null,"Plaća se po komadu montiranog hidranta.","KOM",{"v":2,"d":"2.00"},null,{"$f":"E229*F229","v":0}]
[]
[12,null,"Požarni hidrant spoljašnji"]
[]
[null,null,"Izvršiti nabavku i montažu spoljnog nadzemnog požarnog hidranta Ø80mm sa posebno slobodnostojećim ormanom sa propisanom opremom u metalnu kutiju. Kutija mora biti vidno obojena i sa ključem."]
[null,null,"Plaća se po komadu montiranog hidranta.","KOM",{"v":1,"d":"1.00"},null,{"$f":"E234*F234","v":0}]
[]
[13,null,"Ispitivanje na vododrživost"]
[]
[null,null,"Izvršiti ispitivanje montirane vodovodne mreže svih prečnika na vodoizdrživost prema datim uputstvima. Potrebnu količinu vode kao i uredjaje za ukupno i sektorsko ispitivanje i povišenje pritiska za ispitivanje obezbeđuje izvođač."]
[null,null,"Obračunava se i plaća po metru dužnom cevovoda.","m'",{"v":114.2,"d":"114.20"},null,{"$f":"E239*F239","v":0}]
[]
[14,null,"Dezinfekcija vodovodne mreže"]
[]
[null,null,"Izvršiti dezinfekciju montirane i ispitane vodovodnemreže u objektu prema važećim propisima."]
[null,null,"Obračunava se i plaća po metru dužnom cevovoda.","m'",{"v":114.2,"d":"114.20"},null,{"$f":"E244*F244","v":0}]
[]
[15,null,"Ispitivanje kvaliteta vode"]
[]
[null,null,"Posle izvršene dezinfekcije izvšiti ispitivanje uzoraka vode iz novomontirane vodovodne mreže u higijenskom zavodu - na ispravnost za piće."]
[null,null,"Plaća se po ispostavljenom računu."]
[null,null,"orjentaciono",null,{"v":1,"d":"1.0"},null,{"$f":"E250*F250","v":0}]
[]
[16,null,"Priključak na gradsku mrežu"]
[]
[null,null,"Izvršiti priključenje objekta na gradsku mrežu vodovoda shodno uslovima priključenja JKP Beogradski vodovod i kanalizacija."]
[null,null,"Plaća se po broju komplet izvedenih priključaka.","KOM",{"v":1,"d":"1.00"},null,{"$f":"E255*F255","v":0}]
[]
[null,null,"U K U P N O   V O D O V O D :",{"$nulls":3},{"$f":"SUM(G163:G256)","v":0}]
[]
[null,null,"V SANITARNI OBJEKTI I PRIBOR"]
[]
[null,null,"OPŠTI OPIS"]
[null,null,"Sve sanitarne objekte izvođač je dužan nabaviti tek na osnovu odobrenih uglednih primeraka od strane nadzornog organa. Svi objekti su I klase bele boje. Boja može biti i drugačija ako investitor to zahteva projektnim zadatkom. sanitarni objekti kanalizacionom mrežom, bez oštećenja. Sve eventualno oštećene objekte i opremu izvođač je dužan o svom trošku skinuti i montirati nove. Cenom pozicije radova obuhvaćena su sva potrebna štemovanja i ugrađivanje plastičnih tiplova sa potrebnim krpljenjem i malterisanjem. Svi upotrebljeni zavrtnji kod veza sanitarnih objekata moraju biti mesingani, a za galanteriju poniklovani. Sva sanitarna oprema i pribor su domaće proizvodnje."]
[]
[1,null,"Engleski klozet - konzolni"]
[]
[null,null,"Izvršiti nabavku i montažu engleskog konzolnog klozeta:"]
[null,null,"konzolnu WC šolju od fajansa bele boje"]
[null,null,"klozetsku dasku sa poklopcem od pune plastike, snabevenu odbojnicima"]
[null,null," ispirač niskomontažni, ugradni, povezan sa šoljom plastičnom cevi  Ø32mm sa obujmicom i gumenim odbojnikom"]
[null,null,"Plaća se po montiranom komadu.","kom",{"v":6,"d":"6.00"},null,{"$f":"E270*F270","v":0}]
[]
[2,null,"WC šolja monoblok - za invalide"]
[]
[null,null,"Nabavka i montaža komplet monoblok WC konzolne šolje za invalide sa svom pripadajućom opremom:\n‐ keramička školjka sa horizontalnim odlivom,\n‐ poklopac za klozetsku šolju\n‐ spojna, ispirna cev sa gumenim umetkom,\n‐ savitljiva, spojna cev za vodokotlić,\n‐ aktiviranje ispirača s prednje strane,\n‐ ugaoni ventil DN15,\nObračun po komadu sve montirano, povezano i ispitano.\nSve po izboru investitora. Obračun po kompletu."]
[null,null,"Plaća se po montiranom komadu.","kom",{"v":1,"d":"1.00"},null,{"$f":"E275*F275","v":0}]
[]
[3,null,"Držač toalet papira"]
[]
[null,null,"Izvršiti nabavku i montažu hromiranog držača rolo toalet papira."]
[null,null,"Obračunava se i plaća po montiranom komadu.","kom",{"v":6,"d":"6.00"},null,{"$f":"E280*F280","v":0}]
[]
[4,null,"Umivaonik"]
[]
[null,null,"Izvršiti nabavku i montažu komplet umivaonika od fajansa koji mora odgovarati važećim standardima. Školjka mora biti snabdevena otvorom za odvod, prelivom i čepom za zatvaranje odvodnog otvora. Ispod školjke montirati hromirani sifon koji i spojiti ga sa kanalizacijom. Spoj prekriti niklovanom rozetnom. kačenje i fiksiranje izvršiti putem žabica ili šrafova uz predhodnu ugradnju plastičnih tiplova."]
[null,null,"Obračunava se i plaća po montirano komadu.","kom",{"v":4,"d":"4.00"},null,{"$f":"E285*F285","v":0}]
[]
[5,null,"Umivaonik za invalide"]
[]
[null,null,"Nabavka, transport i montaža umivaonika od keramike dimenzija prilagodjenog za invalide . Montaža umivaonika konzolno na zid sa otvorom za bateriju, proizvođača \"Keramag Geberit group, Kolo group\" ili drugi proizvođač.\nKomplet umivaonika sastoji se od:\n‐ keramički umivaonik, sa otvorom za armaturu, sa prelivom (tip KOLO, serija REKORD ili ekvivalentno)\n‐ poniklovani sifon za priključivanje umivaonika na kanalizaciju\nSve po izboru investitora. Obračun po kompletu."]
[null,null,"Obračunava se i plaća po montirano komadu.","kom",{"v":1,"d":"1.00"},null,{"$f":"E290*F290","v":0}]
[]
[6,null,"Baterija za umivaonik"]
[]
[null,null,"Izvršiti nabavku i montažu jednoručne niklovane baterije za umivaonik."]
[null,null,"Obračunava se i plaća po montiranom komadu."]
[null,null,"za niskomontažni protočni bojler - tri cevi","kom",{"v":4,"d":"4.00"},null,{"$f":"E296*F296","v":0}]
[]
[7,null,"Prateća galanterija u toaletu za invalide"]
[]
[null,null,"Nabavka, transport i montaža prateće galanterije u toaletima za invalide. Komplet se sastoji od:\n- držač toalet papira\n- držač peškira\n- rukohvat kod wc šolje\n- rukohvat kod umivaonika\nSve po standardizovanim elementima prilagodjenih upotrebi za invalde i po izboru investitora. Obračun po kompletu."]
[null,null,"Obračunava se i plaća po montiranom komletu.","kom",{"v":1,"d":"1.00"},null,{"$f":"E301*F301","v":0}]
[]
[8,null,"Baterija za umivaonik za invalide"]
[]
[null,null,"Nabavka transport i montaža jednoručne baterije za umivaonik sa ručnom poteznicom prilagodjena invalidima."]
[null,null,"Obračunava se i plaća po montiranom komadu."]
[null,null,"za niskomontažni protočni bojler - tri cevi","kom",{"v":1,"d":"1.00"},null,{"$f":"E307*F307","v":0}]
[]
[9,null,"Ogledalo"]
[]
[null,null,"Izvršiti nabavku i montažu ogledala vel. 60/40cm u ramu iznad umivaonika."]
[null,null,"Obračunava se i plaća po montiranom komadu."]
[null,null,"za niskomontažni protočni bojler - tri cevi","kom",{"v":5,"d":"5.00"},null,{"$f":"E313*F313","v":0}]
[]
[10,null,"Etažer"]
[]
[null,null,"Izvršiti nabavku i montažu keramičkog etažera iznad umivaonika."]
[null,null,"Obračunava se i plaća po montirano komadu.","kom",{"v":5,"d":"5.00"},null,{"$f":"E318*F318","v":0}]
[]
[11,null,"Držač sapuna kod umivaonika"]
[]
[null,null,"Izvršiti nabavku i montažu držača sapuna kod umivaonika u sanitarnom čvorovima stanova."]
[null,null,"Plaća se po montiranom komadu.","kom",{"v":253,"d":"253.00"},null,{"$f":"E323*F323","v":0}]
[]
[12,null,"Držač peškira kod umivaonika"]
[]
[null,null,"Izvršiti nabavku i montažu hromiranog držača peškira kod umivaonika."]
[null,null,"Plaća se po montiranom komadu.","kom",{"v":4,"d":"4.00"},null,{"$f":"E328*F328","v":0}]
[]
[13,null,"Podni slivnik"]
[]
[null,null,"Izvršiti nabavku i montažu podnih slivnika sa ugrađenim sifonom i rešetkom od mesinganog lima sa met.hromiranom površinom. U kupatilima se predviđa slivnik Ø50mm, sa malom visinom ugradnje i suvim sifonom. Ispod i oko slivnika izvesti hidroizolaciju i povezati je preko kragne sa hidroizolacijom poda."]
[null,null,"Plaća se po komadu montiranog slivnika."]
[null,null,"Ø50 - vertikalni sa suvim sifonom tipa HL Primus, ili sl.","kom",{"v":6,"d":"6.00"},null,{"$f":"E334*F334","v":0}]
[]
[14,null,"Trokadero"]
[]
[null,null,"Izvršiti nabavku i montažu trokadera koji se sastoji od: keramičke šolje sa donjim odvodom i niklovanom pokretnom rešetkom, visokomontažnog vodokotlića i baterije za hladnu i toplu vodu. Izvršiti povezivanje na vodovod i kanalizaciju."]
[null,null,"Obračunava se i plaća po montiranom komadu.","kom",{"v":1,"d":"1.00"},null,{"$f":"E339*F339","v":0}]
[]
[15,null,"Baterija za trokadero"]
[]
[null,null,"Izvršiti nabavku i montažu stojeće jednoručne baterije  za trokadero."]
[null,null,"Obračunava se i plaća po montiranom komadu."]
[null,null,"stojeća sa vezom na EK ventil i niskomont. bojler  - tri veze","kom",{"v":1,"d":"1.00"},null,{"$f":"E345*F345","v":0}]
[]
[16,null,"Električni bojler"]
[]
[null,null,"Izvršiti nabavku i montažu električnog bojlera sa povezivanjem na instalacije vodovoda i elektrike. Bojleri od 80 litara moraju biti opremljeni sigurnosnim ventilima na min. 7 bara."]
[null,null,"Plaća se po montirano komadu."]
[null,null," 10 l - niskomontažni","kom",{"v":4,"d":"4.00"},null,{"$f":"E351*F351","v":0}]
[]
[17,null,"Niklovana vratanca"]
[]
[null,null,"Izvršiti nabavku i montažu niklovanih vratanaca dimenzija 25x25cm za ugradnju na mestima revizionih komada. Vratanca ankerovati u zidu."]
[null,null,"Obračunava se i plaća po montiranom komadu.","kom",{"v":3,"d":"3.00"},null,{"$f":"E356*F356","v":0}]
[]
[null,null,"U K U P N O   S A N I T A R N I   O B J E K T I   I   P R I B O R :",{"$nulls":3},{"$f":"SUM(G262:G357)","v":0}]
[]
[]
[null,"R E K A P I T U L A C I J A     R A D O V A"]
[null,"I PRETHODNI RADOVI:",{"$nulls":4},{"$f":"SUM(G20)","v":0}]
[]
[null,"II   GRAĐEVINSKI RADOVI :",{"$nulls":4},{"$f":"G108","v":0}]
[]
[null,"III  KANALIZACIJA :",{"$nulls":3},{"$f":"F25","v":{"v":0,"d":"0.00"}},{"$f":"G158","v":0}]
[]
[null,"IV  VODOVOD :",{"$nulls":3},{"$f":"F167","v":{"v":0,"d":"0.00"}},{"$f":"G257","v":0}]
[]
[null,"V  SANITARNI OBJEKTI I PRIBOR :",{"$nulls":3},{"$f":"F184","v":{"v":0,"d":"0.00"}},{"$f":"G358","v":0}]
[]
[]
[null,"VODOVOD I KANALIZACIJA",{"$nulls":3},"Ukupno din.",{"$f":"SUM(G361:G372)","v":0}]

{"sheet":"III_EE","index":4,"n_rows":261,"n_cols":7,"rows_kept":261,"merged":[[0,0,0,6],[2,0,7,6],[10,2,10,5],[62,5,62,6],[141,5,141,6],[149,2,150,2],[168,5,168,6],[187,1,187,2],[189,1,189,2],[191,1,191,2],[193,1,193,2],[195,1,195,2],[197,1,197,2],[200,2,200,4],[203,2,203,5],[241,1,241,2],[243,1,243,2],[245,1,245,2],[248,2,248,4],[253,1,253,4],[255,1,255,4],[257,1,257,4],[260,2,260,4],[261,2,261,4]]}
["ELEKTRO ENERGETSKE INSTALACIJE"]
[]
["NAPOMENA: Ovim predmerom i predračunom predviđa se isporuka svog potrebnog materijala i opreme, ugrađivanje kako je to navedeno u pojedinim pozicijama, ispitivanje i puštanje u rad, kao i dovođenje u ispravno stanje svih oštećenih mesta na već izvedenim radovima. Sav upotrebljeni materijal mora biti prvoklasnog kvaliteta. Svi radovi moraju biti izvedeni stručnom snagom, a u potpunosti prema Srpskim propisima i važećim standardima za ovu vrstu radova.\nU cenu se uračunava sav navedeni materijal u pozicijama i sav sitan materijal, koji prati dotičnu poziciju, transport, kao i cenu radne snage sa svim porezima i doprinosima. Cena uključuje ispitivanje i puštanje u ispravan rad svih elemenata instalacije navedenih u pozicijama. Izvođač je dužan da radove izvrši u svemu prema priloženom tehničkom izveštaju, tehničkim uslovima, predmeru i predračunu i crtežima, da pre početka radova dobro prouči dobijenu dokumentaciju i da na vreme upozori na eventualna odstupanja od postojećih propisa.\nIzvođač se takodje ne oslobađa obaveze izvođenja pojedinih radova, koji su predviđeni predmerom i predračunom, a eventualno nisu napomenuti u tehničkom opisu ili ma na kom drugom prilogu ovog projekta, a što je obavezan da uradi po važećim propisima za izvodjenja instalacija za ovu vrstu objekta."]
[]
[]
[]
[]
[]
[]
["RED. BR.","ŠIFRA \nPOZ.","OPIS","J.M.","KOLIČINA","JED. CENA \n(BEZ PDV-a)","IZNOS (BEZ PDV-a)"]
[null,null,"I ENERGETSKE INSTALACIJE U OBJEKTU"]
[]
[null,null,"A. GLAVNI NAPOJNI VODOVI OBJEKTA"]
[]
["1",null,"Isporuka i polaganje napojnog kabla tipa PP00-A 4x25mm   od  IMO do KPK   sa povezivanjem na oba kraja. Cena je data po metru dužnom položenog kabla."]
[{"$nulls":3},"m",20,null,{"$f":"F16*E16","v":{"v":0,"d":"0.00"}}]
[]
["2",null,"Isporuka i polaganje napojnog kabla tipa N2XH   4x16mm2    od  KPK do GRO   sa povezivanjem na oba kraja. Cena je data po metru dužnom položenog kabla."]
[{"$nulls":3},"m",16,null,{"$f":"F19*E19","v":{"v":0,"d":"0.00"}}]
["3",null,"Isporuka i polaganje napojnog kabla tipa N2XH-J 1x16mm od  SIP-a do glavnog razvodnog ormara GRO   sa povezivanjem na oba kraja. Cena je data po metru dužnom položenog kabla."]
[{"$nulls":3},"m",5,null,{"$f":"F21*E21","v":{"v":0,"d":"0.00"}}]
[]
["4",null,"Isporuka i polaganje  cevi PE fi 110mm od KPK  do IMO ."]
[{"$nulls":3},"m",15,null,{"$f":"F24*E24","v":{"v":0,"d":"0.00"}}]
[]
[]
[null,null,"UKUPNO pod A:",{"$nulls":3},{"$f":"SUM(G15:G25)","v":{"v":0,"d":"0.00"}}]
[]
[null,null,"B. RAZVODNI ORMANI"]
[]
["1",null,"Isporuka, transport, šemiranje, montaža i povezivanje glavnog razvodnog ormana GRO namenjene za montažu u zid , kako je dato jednopolnom šemom. Na unutrašnjoj strani vrata se lepi jednopolna šema table sa svim potrebnim električnim podacima o razvodu. Tabla se izrađuje od plastičnog bezhalogenog materijala.  Tabla ima DIN šine i 2 sabirnice (zaštitna i nulta).Placa se rad i materijal po razvodnoj tabli, opremljenom sledecom elektricnom opremom:"]
[]
[null,null,"1 kom.-uzidna spratna tabla veličine 72 modula"]
[null,null,"1 kom.-zaštitni uredjaj diferencijalne struje 40/0,5A,4 pola ,FID sklopka"]
[null,null,"2 kom.-zaštitni uredjaj diferencijalne struje 25/0,03A,4 pola ,FID sklopka"]
[null,null,"1 kom-PrenaponskA zaštitA klase 1 tip   PZH R1 275/25/3+1, 7710063, (Hermi). Povezivanje faznih provodnika nule  i neutralnog provodnika."]
[null,null,"3 kom. 1-polni automatski osigurač MC32/ C25"]
[null,null,"3 kom. 1-polni automatski osigurač MC32/ C20"]
[null,null,"3 kom.- 1-polni automatski osigurač MC32/ C16"]
[null,null,"21 kom.- 1-polni automatski osigurač MC32/ B16"]
[null,null,"9 kom.- 1-polni automatski osigurač MC32/ B10"]
[null,null,"4 kom.- 1-polni automatski osigurač MC32/ B6"]
[null,null,"2 kom.-Grebenasta sklopka, 1-0-2, 20A, 1-polna"]
[null,null,"1 kom.-Instalacioni kontaktor 16A, sa kontaktima 2NO 230/240VAC"]
[null,null,"1 kom.-Instalacioni kontaktor 16A, sa kontaktima 1NO 230/240VAC"]
[null,null,"1 kom.-foto rele sa senzorom"]
[null,null,"1 kom.-Tajmer"]
[null,null,"3 kom.-Signalna lampica LED zelena, montaža na vrata ormana"]
[{"$nulls":3},"kom.",1,null,{"$f":"F49*E49","v":{"v":0,"d":"0.00"}}]
[]
["2",null,"Isporuka, transport, šemiranje, montaža i povezivanje razvodnog ormana RO-S namenjene za montažu u zid , kako je dato jednopolnom šemom. Na unutrašnjoj strani vrata se lepi jednopolna šema table sa svim potrebnim električnim podacima o razvodu. Tabla se izrađuje od plastičnog bezhalogenog materijala.  Tabla ima DIN šine i 2 sabirnice (zaštitna i nulta).Placa se rad i materijal po razvodnoj tabli, opremljenom sledecom elektricnom opremom  :"]
[null,null,"1 kom.-uzidna spratna tabla veličine 48 modula"]
[null,null,"1 kom.-Glavni rastavljač sličan INS40A"]
[null,null,"1 kom.-zaštitni uredjaj diferencijalne struje 25/0,03A,4 pola ,FID sklopka"]
[null,null,"3 kom.- 1-polni automatski osigurač MC32/ C16"]
[null,null,"13 kom. 1-polni automatski osigurač MC32/ B16"]
[null,null,"8 kom.- 1-polni automatski osigurač MC32/ B10"]
[null,null,"3 kom.- 1-polni automatski osigurač MC32/ B6"]
[null,null,"3 kom.-Signalna lampica LED zelena, montaža na vrata ormana"]
[{"$nulls":3},"kom.",1,null,{"$f":"F60*E60","v":{"v":0,"d":"0.00"}}]
[]
[]
[null,null,"UKUPNO pod B:",null,null,{"$f":"SUM(G30:G61)","v":{"v":0,"d":"0.00"}}]
[]
[null,null,"C. ELEKTRIČNE INSTALACIJE"]
[]
["1",null,"Isporuka i ugradnja PVC gibljivih lakih cevi fi 16mm u betonske elemente konstrukcije na mestu prolaza kablova kroz iste, pre izlivanja betona."]
[{"$nulls":3},"m",50,null,{"$f":"F68*E68","v":{"v":0,"d":"0.00"}}]
[]
["2",null,"Isporuka i ugradnja PVC dozni 78mm sa poklopcem na pozicijama udvajanja kablova / instalacionih provodnika."]
[{"$nulls":3},"kom.",60,null,{"$f":"F71*E71","v":{"v":0,"d":"0.00"}}]
[]
["3",null,"Isporuka i polaganje po zidu (pre malterisanja) odnosno kroz prethodno položene cevi ili vidno po zidovima i tavanicama na odstojnim obujmicama, instalacionih provodnika tipa N2XH-J 3x1,5mm2  za instalacije rasvete ."]
[{"$nulls":3},"m",670,null,{"$f":"F74*E74","v":{"v":0,"d":"0.00"}}]
[]
["4",null,"Isporuka i polaganje po zidu (pre malterisanja) odnosno kroz prethodno položene cevi ili vidno po zidovima i tavanicama na odstojnim obujmicama, instalacionih provodnika tipa N2XH-J 3x2,5mm2 za instalacije monofaznih priključnica i druge razgranate instalacije."]
[{"$nulls":3},"m",880,null,{"$f":"F77*E77","v":{"v":0,"d":"0.00"}}]
[]
["5",null,"Isporuka i polaganje po zidu (pre malterisanja) odnosno kroz prethodno položene cevi ili vidno po zidovima i tavanicama na odstojnim obujmicama, instalacionih provodnika tipa N2XH-J 5x2,5mm2 za instalacije trofaznih prikljucaka. "]
[{"$nulls":3},"m",65,null,{"$f":"F80*E80","v":{"v":0,"d":"0.00"}}]
[]
["6",null,"Isporuka i polaganje po zidu (pre malterisanja) odnosno kroz prethodno položene cevi ili vidno po zidovima i tavanicama na odstojnim obujmicama, instalacionih provodnika tipa N2XH-J 5x4 mm2 za instalacije napajanjaspratne table RO-S. "]
[{"$nulls":3},"m",24,null,{"$f":"F83*E83","v":{"v":0,"d":"0.00"}}]
[]
[7,null,"Isporuka, montaža i povezivanje komplet instalacione prekidačko / priključne opreme prema priloženoj specifikaciji. Pozicija uključuje prekidačko / priključna tela, montažne pločice, zaštitno dekorativne maske. Pre nabavke istih, usaglasiti boju sa arhitektom."]
["7,1",null,"Isporuka i montaža jednopolnog prekidača zaštite IP20 tipa Schneider Unica  ili slično,  \nkomplet sa sledećom opremom:"]
[null,null,"1 kom - dozna za malter  2M"]
[null,null,"1 kom - nosač 2M"]
[null,null,"1 kom - okvir beli 2M"]
[null,null,"1 kom - jednopolni prekidač, 10A, 2M"]
[null,null,"Komplet materijal i rad","kom",7,null,{"$f":"F91*E91","v":{"v":0,"d":"0.00"}}]
[]
["7,2",null,"Isporuka i montaža bloka (serijskog) prekidača zaštite IP20 tipa Schneider Unica  ili slično,  \nkomplet sa sledećom opremom:"]
[null,null,"1 kom - dozna za malter  2M"]
[null,null,"1 kom - nosač 2M"]
[null,null,"1 kom - okvir beli 2M"]
[null,null,"2 kom - jednopolni prekidač, 10A, 1M"]
[null,null,"Komplet materijal i rad","kom",6,null,{"$f":"F98*E98","v":{"v":0,"d":"0.00"}}]
[]
["7,3",null,"Isporuka i montaža naizmenicnog prekidača zaštite IP20 tipa Schneider Unica  ili slično, \nkomplet sa sledećom opremom:"]
[null,null,"1 kom - dozna za malter  2M"]
[null,null,"1 kom - nosač 2M"]
[null,null,"1 kom - okvir beli 2M"]
[null,null,"1 kom - naizmenični prekidač 10A, 2M"]
[null,null,"Komplet materijal i rad","kom",2,null,{"$f":"F105*E105","v":{"v":0,"d":"0.00"}}]
[]
["7,4",null,"Isporuka i montaža bloka  prekidača zaštite IP20 tipa Schneider Unica  ili slično,  \nkomplet sa sledećom opremom:"]
[null,null,"1 kom - dozna za malter  2M"]
[null,null,"1 kom - nosač 2M"]
[null,null,"1 kom - okvir beli 2M"]
[null,null,"1kom - jednopolni prekidač, 10A, 1M"]
[null,null,"1 kom - jednopolni prekidač sa indikacijom,16A, 1M"]
[null,null,"Komplet materijal i rad","kom",4,null,{"$f":"F113*E113","v":{"v":0,"d":"0.00"}}]
[]
["7,5",null,"Isporuka i montaža  bloka prekidača zaštite IP20  tipa Schneider Unica ili sl. komplet sa sledećom opremom:"]
[null,null,"1 kom - dozna za malter  3M"]
[null,null,"1 kom - nosač 3M"]
[null,null,"1 kom - okvir beli 3M"]
[null,null,"1 kom - jednopolni prekidač ,10A, 1M"]
[null,null,"2 kom - naizmenični prekidač 10A, 2M"]
[null,null,"Komplet materijal i rad","kom",2,null,{"$f":"F121*E121","v":{"v":0,"d":"0.00"}}]
[]
["7,6",null,"Isporuka i montaža priključnica , za ugradnju u zid, komplet za četiri  modula komplet sa sledećom opremom:"]
[null,null,"1 kom - dozna za malter 4M"]
[null,null,"1 kom - nosač 4M"]
[null,null,"1 kom - okvir beli 4M"]
[null,null,"2 kom - šuko utičnica 2P+E, 16A, 2M, bela"]
[null,null,"Komplet materijal i rad","kom",14,null,{"$f":"F128*E128","v":{"v":0,"d":"0.00"}}]
[]
["7,7",null,"Monofazna priključnica, mrežno napajanje, 2P+E, 16A, 250V, bele boje, za ugradnju u zid IP20, komplet za dva modula"]
[null,null,"Komplet materijal i rad","kom",35,null,{"$f":"F131*E131","v":{"v":0,"d":"0.00"}}]
[]
["7,8",null,"Monofazna priključnica, mrežno napajanje, 2P+E, 16A, 250V, bele boje, za ugradnju u zid sa poklopcem IP44, bele boje, komplet za dva modula"]
[null,null,"Komplet materijal i rad","kom",4,null,{"$f":"F134*E134","v":{"v":0,"d":"0.00"}}]
[]
[8,null,"Isporuka i montaža detektora  pokreta i prisutnosti 360º, 230VAC, 50Hz, sa kontaktom od 8A, u zaštiti IP54. Podešavanje osvetljaja od 5 do 1000Lx; podešavanje vremena zadrške od 5sec. Do 15min."]
[null,null,"Komplet materijal i rad","kom",10,null,{"$f":"F137*E137","v":{"v":0,"d":"0.00"}}]
[]
[9,null,"Set za zatvaranje prodora kablova kroz protivpožarni zid/ploču (prolazak kablova iz jednog PP sektora u drugi) koji se sastoji od:\n- Požarnootporne gotove ploče, od mineral fibera  tip PSX-P Obo Bettermann\n- Požarootporne git mase, građevinski materijal za ubrizgavanje tip ASX-E Obo Bettermann\n- Pločica za označavanje vatrootpornog prodora tip KS-S EN Obo Bettermann\nObračun dat po m2 površini otvora koji se zatvara.\nNapomena:\n1. Set za zatvaranje prodora kablova treba da poseduje odgovarajuće ateste važeće u Republici Srbiji \n2. Obrada prodora protivpožarnih zidova zaštitnom masom treba da bude izvedena od strane ovlašćenog lica sa odgovarajućim atestima važećim u Republici Srbiji\n"]
[null,null,"Komplet materijal i rad","m2",0.2,null,{"$f":"F140*E140","v":{"v":0,"d":"0.00"}}]
[]
["UKUPNO pod C:",{"$nulls":4},{"$f":"SUM(G67:G141)","v":{"v":0,"d":"0.00"}}]
[]
[null,null,"E. RASVETNA TELA"]
[null,null,"Svetiljke uskladiti sa rešenjem arhitekte i zahtevima investitora ."]
[]
["1",null,"S3: Nadgradna svetiljka za direktno osvetljenje, visoke energetske efikasnosti, za kvalitetno osvetljenje poslovnih prostora. Potpun vidni komfor obezbeđen najnovijim optičkim komponentama i elektrokomponentama. Bočni raster od sjajnog aluminijuma za povećanu energetsku efikasnost. Visokotransparentni difuzor mikroprizmatične strukture obezbeđuje zaštitu od blještanja i ujednačeno difuzno svetlo. Opalna folija obezbeđuje ujednačeno prosvetljenu površinu, bez uočljivosti izvora svetla za pun vizuelni komfor. Svetiljka od čeličnog lima debljine 0,6mm, završno zaštićena epoksi- poliester prahom specijalne bele reflektujuće boje. Ukupna snaga svetiljke: 42.0W. Temperatura boje svetla 4000 K sa indeksom reprodukcije boje (CRI) >80. Životni vek led izvora svetlosti 60000 sati, uz uslov da fluks ne opadne na manje od 80% inicijalnog fluksa po isteku 50000 sati (L80B10). Inicijalni fluks svetiljke je 5000lm. Efikasnost svetiljke ne manja od 119lm/W. Devijacija boje svetla (SDCM) manja od 3. Stepen blještanja svetiljke UGR < 19. Dimenzije svetiljke 600/466/60 A/B/H[mm]. Stepen zaštite IP40. Svetiljka je servisibilna, odnosno ugrađeni izvori svetla i drajveri su izmenjljivi prema ZHAGA standardu. Proizvođač svetiljki poseduje važeće sertifikate: ISO 9001:2015, ISO 27001:2013 ,ISO 14001:2015, ISO 45001:2018, ISO 50001:2011. Svetiljka tipa ORIEN CDP 2 600 HO /840, proizvođač Buck."]
[{"$nulls":3},"kom",50,null,{"$f":"F148*E148","v":{"v":0,"d":"0.00"}}]
[]
["2",null,"S4: Viseća linijska svetiljka za direktno i indirektno osvetljenje, visoke energetske efikasnosti, za kvalitetno osvetljenje poslovnih prostora. Za direktnu svetlosnu komponentu višeslojni optički pribor : ekstrudirani transparentni/ opalni beli difuzor, CDP prizmatični difuzor i opalna difuzna folija. Za indirektnu svetlosnu komponentu: satinirani protektor od PMMA. Obe komponente obezbeđuju visoku energetsku efikasnost >100 lm/W i pun vidni komfor. Svetiljka od ekstrudiranog aluminijuma. Završna obrada - eloksiranje u boji prirodnog aluminijuma ili zaštita epoksi-poliester prahom sitnostrukturne teksture. Svetiljka se isporučuje sa ovesnim priborom. Ukupna snaga svetiljke: 46W. Temperatura boje svetla 4000 K sa indeksom reprodukcije boje (CRI) >80. Životni vek led izvora svetlosti 60000 sati, uz uslov da fluks ne opadne na manje od 80% inicijalnog fluksa po isteku 50000 sati (L80B10). Inicijalni fluks svetiljke je 6331lm. Efikasnost svetiljke ne manja od 138lm/W. Devijacija boje svetla (SDCM) manja od 3. Stepen blještanja svetiljke UGR < 16. Dimenzije svetiljke 1126/60/110 A/B/H[mm]. Stepen zaštite IP40. Svetiljka je servisibilna, odnosno ugrađeni izvori svetla i drajveri su izmenjljivi prema ZHAGA standardu. Proizvođač svetiljki poseduje važeće sertifikate: ISO 9001:2015, ISO 27001:2013 ,ISO 14001:2015, ISO 45001:2018, ISO 50001:2011. Svetiljka tipa DUAL S CDP 1200 /840 HO, proizvođač Buck."]
[]
[{"$nulls":3},"kom",11,null,{"$f":"F152*E152","v":{"v":0,"d":"0.00"}}]
[]
["3",null,"S5: Nadgradna svetiljka za direktno osvetljenje. Svetiljka od aluminijumske cevi, završno zaštićena epoksi-poliester prahom sitnostrukturne teksture. Ukupna snaga svetiljke: 11W. Temperatura boje svetla 4000 K sa indeksom reprodukcije boje (CRI) >80. Životni vek led izvora svetlosti 55000 sati, uz uslov da fluks ne opadne na manje od 90% inicijalnog fluksa po isteku 50000 sati (L90B10). Inicijalni fluks svetiljke je 1494lm. Efikasnost svetiljke ne manja od 136lm/W. Devijacija boje svetla (SDCM) manja od 3. Stepen blještanja svetiljke UGR < 13. Dimenzije svetiljke 120/190 Ø/H[mm]. Stepen zaštite IP20. Svetiljka je servisibilna, odnosno ugrađeni izvori svetla i drajveri su izmenjljivi prema ZHAGA standardu. Proizvođač svetiljki poseduje važeće sertifikate: ISO 9001:2015, ISO 27001:2013 ,ISO 14001:2015, ISO 45001:2018, ISO 50001:2011. Svetiljka tipa NEO SPOT TB INT 190-1500 /840, proizvođač Buck."]
[{"$nulls":3},"kom",10,null,{"$f":"F155*E155","v":{"v":0,"d":"0.00"}}]
[]
["4",null,"S6: Nadgradna kružna svetiljka sa kućištem od polikarbonata i difuzorom od samogasivog polikarbonata. Ukupna snaga svetiljke 18W, temperatura boje svetla 4000K sa indeksom reprodukcije boje (CRI) >80, inicijalni fluks svetiljke 1796lm. Životni vek led izvora svetlosti 30000 sati L70B50. Stepen zaštite IP65. Dimenzije svetiljke 280/55  Ø/H[mm]. Svetiljka tip PASTILLA. Isporučilac Buck."]
[{"$nulls":3},"kom",30,null,{"$f":"F158*E158","v":{"v":0,"d":"0.00"}}]
[]
["5",null,"P2: Isporuka i ugradnja jednostrane protivpanične nadgradne svetiljke sa piktogramom  za označavanje izlaza, u trajnom spoju, bele boje, sa polikarbonatnim kućištem, IP65. Svetiljka poseduje LED traku kao izvor svetlosti, snage 2.5W, 200Lm. Svetiljka poseduje sopstvenu bateriju, autonomije 1h.\nSlična tipu Eaton Safelite (SL2MNM65F1C3A)"]
[{"$nulls":3},"kom",4,null,{"$f":"F161*E161","v":{"v":0,"d":"0.00"}}]
[]
["6",null,"P3: Isporuka i ugradnja jednostrane protivpanične nadgradne svetiljke sa piktogramom  za označavanje izlaza, u trajnom spoju, bele boje, sa polikarbonatnim kućištem, IP42. Svetiljka poseduje LED traku kao izvor svetlosti, snage 2.8W, 150Lm. Svetiljka poseduje sopstvenu bateriju, autonomije 1h.\nSlična tipu Eaton Safelite (SL2MNM42E1C3A )"]
[{"$nulls":3},"kom",9,null,{"$f":"F164*E164","v":{"v":0,"d":"0.00"}}]
[]
["7",null,"P4: Isporuka i ugradnja jednostrane protivpanične nadgradne svetiljke sa piktogramom  za pravca evakuacije, u trajnom spoju, bele boje, sa polikarbonatnim kućištem, IP42. Svetiljka poseduje LED traku kao izvor svetlosti, snage 2.8W, 150Lm. Svetiljka poseduje sopstvenu bateriju, autonomije 1h.\nSlična tipu Eaton Safelite (SL2MNM42E1C3A )"]
[{"$nulls":3},"kom",9,null,{"$f":"F167*E167","v":{"v":0,"d":"0.00"}}]
[]
[null,null,"UKUPNO pod E: ",null,null,{"$f":"SUM(G146:G168)","v":{"v":0,"d":"0.00"}}]
[]
[]
[null,null,"F. SISTEM ZA OTVARANJE PROZORA ZA ODIMLJAVANJE"]
[]
["1",null,"GEZE THZ Comfort kompaktna centrala za upravljanje prozorom na stepenicama. Centrala napaja motore strujom do 4.5 A na naponu od 24 v DC. Centrala se po potrebi moze „umreziti“ i povezati sa slicnim centralama THZ Comfort ili sa PP centralom  (kao i sa centralom MBZ 300 N 24). Centrala je certifikovana u skladu sa DIN EN 12101-10 \nCentrala THZ Comfort ima sopstveni akumlator za napajanje izvrsnih motora sistema RWA (odimljavanja) \n"]
[{"$nulls":3},"kom",1,null,{"$f":"F175*E175","v":{"v":0,"d":"0.00"}}]
[]
["2",null,"FT 4 A - VdS SHEV rucni javljac u aluminijumskom kucistu za aktiviranje / resetovanje centrale. Boja kucista : narandzasta, RAL 2011"]
[{"$nulls":3},"kom",1,null,{"$f":"F178*E178","v":{"v":0,"d":"0.00"}}]
[]
["3",null,"LTA-24-AZ vent switch, Prekidac za upravljanje prozorima (kapcima) u dnevnom rezimu (rezim prirodne ventilacije / provetravanja); povezuje se na centralu "]
[{"$nulls":3},"kom",1,null,{"$f":"F181*E181","v":{"v":0,"d":"0.00"}}]
[]
["4",null,"Kablovi izvedeni sa žilama od bakra, vatrootpornom barijerom i halogen free izolacijom koji zadržavaju funkcionalnost u slučaju požara u trajanju od 180 minuta. Kablovi se polažu na vatrootporne kablovske regale E90, vatrootporne obujmice E90, komplet sa povezivanjem na oba kraja, sledećih tipova i preseka: NHXHX FE180/E90 4x1.5mm²"]
[{"$nulls":3},"m",8,null,{"$f":"F184*E184","v":{"v":0,"d":"0.00"}}]
[]
[null,null,"UKUPNO pod F:",{"$nulls":3},{"$f":"SUM(G174:G185)","v":{"v":0,"d":"0.00"}}]
[]
[null,"REKAPITULACIJA RADOVA"]
[]
[null,"A. GLAVNI NAPOJNI VODOVI OBJEKTA",{"$nulls":4},{"$f":"G27","v":{"v":0,"d":"0.00"}}]
[]
[null,"B. RAZVODNI ORMARI",{"$nulls":4},{"$f":"F63","v":{"v":0,"d":"0.00"}}]
[]
[null,"C. ELEKTRIČNE INSTALACIJE",{"$nulls":4},{"$f":"F142","v":{"v":0,"d":"0.00"}}]
[]
[null,"E. RASVETNA TELA",{"$nulls":4},{"$f":"F169","v":{"v":0,"d":"0.00"}}]
[]
[null,"F. SISTEM ZA OTVARANJE PROZORA ZA ODIMLJAVANJE",{"$nulls":4},{"$f":"G186","v":{"v":0,"d":"0.00"}}]
[]
[]
[null,null,"I ENERGETSKE INSTALACIJE U OBJEKTU",null,null,"Ukupno",{"$f":"SUM(G189:G199)","v":{"v":0,"d":"0.00"}}]
[]
[]
[null,null,"II TEMELJNI UZEMLJIVAČ GROMOBRANSKE INSTALACIJE I IZJEDNAČAVANJE POTENCIJALA"]
[]
[null,null,"A. TEMELJNI UZEMLJIVAČ GROMOBRANSKE INSTALACIJE"]
[]
[1,null,"Isporuka materijala i izrada instalacije temeljnog uzemljivača pocinkovanom trakom Fe/Zn 25x4mm- čelična taka pocinkovana toplim posupkom. Traka se polaže zajedno sa temeljnom armaturom, za koju se vari, a varovi zaštićuju antikorozivnom bojom. Plaća se sve komplet po dužnom metru. U cenu su uračunati i ukrsni komadi."]
[{"$nulls":3},"m",130,null,{"$f":"E209*F209","v":{"v":0,"d":"0.00"}}]
[]
[2,null,"Isporuka trake Fe/Zn 25x4, polaganje horizontalno na potporama za beton po platformi, do mesta ulaska u betonski stub odnosno vertikalno kroz stub (pre nalivanja betona) do merno rastavnog spoja, sa isporukom vrata za merno-rastavni spoj i ugradnja istih Prosečna dužina spusta je 4 m.I trake Fe/Zn 20x3 za izradu spusta od merno rastavnog spoja do krova . Prosečna dužina spusta je 7 m."]
[{"$nulls":3},"kom",5,null,{"$f":"E212*F212","v":{"v":0,"d":"0.00"}}]
[]
[3,null,"Isporuka materijala i izrada izvoda od uzemljivača , za GSIP-a, pocinkovanom trakom FeZn 25x4mm, prosečne dužine 3m . Plaća se po komadu. "]
[{"$nulls":3},"kom",1,null,{"$f":"E215*F215","v":{"v":0,"d":"0.00"}}]
[]
[4,null,"Isporuka materijala i izrada izvoda od uzemljivača , za uzemljenje oluka, pocinkovanom trakom FeZn 20x3mm, prosečne dužine 3m, komplet sa obujmicom za oluk , slične proizvodu ELIND Valjevo, kataloške oznakeNGO-16 , BY  JUS N.B4.914. P ). Plaća se po komadu "]
[{"$nulls":3},"kom",2,null,{"$f":"E218*F218","v":{"v":0,"d":"0.00"}}]
[]
[4,null,"Isporuka materijala i izrada gromobranske instalacije na krovu objekta pocinkovanom trakom Fe/Zn 20x3mm- čelična taka pocinkovana toplim postupkom . Plaća se sve komplet po dužnom metru. U cenu su uračunati i ukrsni komadi i krovni drzaci."]
[{"$nulls":3},"m",150,null,{"$f":"E221*F221","v":{"v":0,"d":"0.00"}}]
[]
[5,null,"Merenje prelaznog otpora temeljnog uzemljivača sa izdavanjem atesta. "]
[{"$nulls":3},"kom",1,null,{"$f":"E224*F224","v":{"v":0,"d":"0.00"}}]
[]
[null,null,"UKUPNO pod A: ",{"$nulls":3},{"$f":"SUM(G208:G225)","v":{"v":0,"d":"0.00"}}]
[]
[]
[null,null,"B. IZJEDNAČAVANJE POTENCIJALA"]
[]
[1,null,"Isporuka i  ugradnja sabirnice za izjednačavanje potencijala SIP u objektu."]
[{"$nulls":3},"kom.",1,null,{"$f":"E232*F232","v":{"v":0,"d":"0.00"}}]
[]
[2,null,"Isporuka i  polaganje provodnika N2XH -J 1x4  sa ugradnjom PS-49 kutija za lokalno izjednačenje potencijala. Kabal se polaže ispod maltera od odgovarajuće razvodne table RO  do PS-49 kutije. Prosečna dužina provodnika je 9m. U cenu je uračunat kabal i PS-49 kutija."]
[{"$nulls":3},"kom.",3,null,{"$f":"E235*F235","v":{"v":0,"d":"0.00"}}]
[]
[3,null,"Isporuka i  polaganje provodnika  P-Y 4mm2 za lokalno izjednačenje potencijala u kupatilu povezivanjem radijatora, kade vodovodnih cevi itd. na PS-49 kutiju. Kabal se polaže ispod maltera kroz PVC crevo fi 11mm sa svim potrebnim povezivanjem sa bakarnim obujmicama. "]
[{"$nulls":3},"kom.",3,null,{"$f":"E238*F238","v":{"v":0,"d":"0.00"}}]
[]
[null,null,"UKUPNO pod B: ",{"$nulls":3},{"$f":"SUM(G230:G238)","v":{"v":0,"d":"0.00"}}]
[]
[null,"REKAPITULACIJA RADOVA"]
[]
[null,"A. TEMELJNI UZEMLJIVAČ GROMOBRANSKE INSTALACIJE",{"$nulls":4},{"$f":"G226","v":0}]
[]
[null,"B. IZJEDNAČAVANJE POTENCIJALA",{"$nulls":4},{"$f":"G240","v":0}]
[]
[]
[null,null,"II TEMELJNI UZEMLJIVAČ GROMOBRANSKE INSTALACIJE I IZJEDNAČAVANJE POTENCIJALA",null,null,"Ukupno",{"$f":"SUM(G243:G247)","v":0}]
[]
[]
[]
[]
[null,"KONAČNA REKAPITULACIJA"]
[]
[null,"I ENERGETSKE INSTALACIJE U OBJEKTU",{"$nulls":4},{"$f":"G201","v":0}]
[]
[null,"II TEMELJNI UZEMLJIVAČ GROMOBRANSKE INSTALACIJE I IZJEDNAČAVANJE POTENCIJALA",{"$nulls":4},{"$f":"G249","v":0}]
[]
[]
[null,null,"ELEKTROENERGETSKE INSTALACIJE",null,null,"Ukupno",{"$f":"SUM(G255:G259)","v":0}]

{"sheet":"V_TiS","index":5,"n_rows":243,"n_cols":7,"rows_kept":243,"merged":[[0,0,0,6],[2,0,7,6],[10,2,10,5],[42,3,42,5],[90,3,90,5],[115,3,115,5],[135,3,135,5],[137,2,137,6],[138,0,139,0],[138,1,139,1],[138,2,139,2],[138,3,139,3],[138,4,139,4],[138,5,139,5],[138,6,139,6],[141,3,141,5],[144,1,144,2],[146,1,146,2],[148,1,148,2],[150,1,150,2],[152,1,152,2],[154,1,154,2],[157,2,157,4],[161,2,161,5],[163,0,163,6],[183,3,183,5],[203,3,203,5],[219,3,219,5],[222,1,222,2],[224,1,224,2],[226,1,226,2],[228,1,228,2],[230,2,230,4],[235,1,235,4],[237,1,237,4],[239,1,239,4],[241,1,241,4],[242,2,242,4],[244,1,244,4]]}
["TELEKOMUNIKACIONE I SIGNALNE INSTALACIJE "]
[]
["NAPOMENA: Ovim predmerom i predračunom predviđa se isporuka svog potrebnog materijala i opreme, ugrađivanje kako je to navedeno u pojedinim pozicijama, ispitivanje i puštanje u rad, kao i dovođenje u ispravno stanje svih oštećenih mesta na već izvedenim radovima. Sav upotrebljeni materijal mora biti prvoklasnog kvaliteta. Svi radovi moraju biti izvedeni stručnom snagom, a u potpunosti prema Srpskim propisima i važećim standardima za ovu vrstu radova.\nU cenu se uračunava sav navedeni materijal u pozicijama i sav sitan materijal, koji prati dotičnu poziciju, transport, kao i cenu radne snage sa svim porezima i doprinosima. Cena uključuje ispitivanje i puštanje u ispravan rad svih elemenata instalacije navedenih u pozicijama. Izvođač je dužan da radove izvrši u svemu prema priloženom tehničkom izveštaju, tehničkim uslovima, predmeru i predračunu i crtežima, da pre početka radova dobro prouči dobijenu dokumentaciju i da na vreme upozori na eventualna odstupanja od postojećih propisa.\nIzvođač se takodje ne oslobađa obaveze izvođenja pojedinih radova, koji su predviđeni predmerom i predračunom, a eventualno nisu napomenuti u tehničkom opisu ili ma na kom drugom prilogu ovog projekta, a što je obavezan da uradi po važećim propisima za izvodjenja instalacija za ovu vrstu objekta.\n\n"]
[]
[]
[]
[]
[]
[]
["RED. BR.","ŠIFRA \nPOZ.","OPIS","J.M.","KOLIČINA","JED. CENA \n(BEZ PDV-a)","IZNOS (BEZ PDV-a)"]
[null,null,"I TELEKOMUNIKACIONE INSTALACIJE"]
[]
["1.",null,"PRIVODNA IT INFRASTRUKTURA"]
[]
["1.1.",null,"Geodetesko obeležavanje trase i čišćenje od šiblja i sitnog rastinja. ","m",15,null,{"$f":"E15*F15","v":{"v":0,"d":"0.00"}}]
[]
["1.2.",null,"Ručni iskop rova u zemljištu III kategorije dimenzija 0,4 x 1,1 m sa pravilnim odsecanjem bočnih stranica i ravnim dnom, iskop odlagati na gradilišnu deponiju.","m³",7,null,{"$f":"E17*F17","v":{"v":0,"d":"0.00"}}]
[]
["1.3.",null,"Nabavka, isporuka i formiranje sloja peska na dnu rova za izradu posteljice za cevi, d=10 cm na dnu rova i d=10 cm iznad temena cevi.","m³",1.2,null,{"$f":"E19*F19","v":{"v":0,"d":"0.00"}}]
[]
["1.4.",null,"Nabavka, isporuka i polaganje u pripremljeni rov PE cevi Ø 110 mm.","m",15,null,{"$f":"E21*F21","v":{"v":0,"d":"0.00"}}]
[]
["1.5.",null,"Zatrpavanje rova TK kanalizacije  zemljom iz iskopa sa nabijanjem i polivanjem vodom.","m³",5,null,{"$f":"E23*F23","v":{"v":0,"d":"0.00"}}]
[]
["1.6.",null,"Nabavka, isporuka i nasipanje sloja šljunka d=10 cm iznad sloja peska na trasi kablova.","m³",0.6,null,{"$f":"E25*F25","v":{"v":0,"d":"0.00"}}]
[]
["1.7.",null,"Nabavka, isporuka i zatvaranje slobodnih cevi gumenim čepovima.","kom",2,null,{"$f":"E27*F27","v":{"v":0,"d":"0.00"}}]
[]
["1.8.",null,"Nabavka, isporuka i polaganje upozoravajuću PVC traku, žute boje, sa tekstom \"telekomunikacioni kabl\" ili sl., izrađene prema PTT vesniku br. 14/1. U","m",15,null,{"$f":"E29*F29","v":{"v":0,"d":"0.00"}}]
[]
["1.9.",null,"Nabavka, isporuka i postavljanje PVC štitnika za cevi u rovu.","m",15,null,{"$f":"E31*F31","v":{"v":0,"d":"0.00"}}]
[]
["1.10.",null,"Utovar i odvoz viška zemlje i ostalog materijala na deponiju, udaljenost do 10 km.","m³",5,null,{"$f":"E33*F33","v":{"v":0,"d":"0.00"}}]
[]
["1.11.",null,"Ispitivanje zbijenosti rova (prelazi i na 50m trase jedno ispitivanje).","m",15,null,{"$f":"E35*F35","v":{"v":0,"d":"0.00"}}]
[]
["1.12.",null,"Provera prohodnosti cevi TK kanalizacije od strane nadležnih službi.","m",15,null,{"$f":"E37*F37","v":{"v":0,"d":"0.00"}}]
[]
["1.13.",null,"Sitan potrošni materijal (češalj, spojnice, čepovi i sl.) i nepredviđeni radovi.","paušal",1,null,{"$f":"E39*F39","v":{"v":0,"d":"0.00"}}]
[{"$nulls":5}," "]
["1.14.",null,"Izrada projekta izvedenog objekta (2 primerka na papiru + 1 u elektronskom obliku na CDR mediju).","paušal",1,null,{"$f":"E41*F41","v":{"v":0,"d":"0.00"}}]
[]
[{"$nulls":3},"UKUPNO:",null,null,{"$f":"SUM(G14:G42)","v":{"v":0,"d":"0.00"}}]
[]
["2.",null,"STRUKTURNI KABLOVSKI SISTEM"]
[]
[null,null,"Ovom specifikacijom predviđa se isporuka sve opreme i materijala navedenih u pozicijama i svog sitnog nespecificiranog materijala potrebnog za kompletnu izradu, ugrađivanje, ispitivanje i puštanje u rad, kao i dovođenje u ispravno-prvobitno stanje svih mesta oštećenih na već izvedenim radovima. Ranžirni i prespojni kablovi nisu predviđeni ovim projektom, iste nabavlja investitor nakon nabavke i instalacije potrebne mrežne aktivne i druge tehnološke opreme.\n"]
[]
["2.1.",null,"Glavni distrubutivni ormanBD , nazidni REK orman , osnove 600x595 mm, visine 22  U opremljen sa:\n- 19\" nosačem sa vertikalnim kablovskim vođicama\n- Prednjim jednostrukim perforiranim vratima sa\nbravom;\n- Zadnjim dvostrukim perforiranim vratima sa\nbravom;\n- 1 x fiksno postolje;\n- set za uzemljenje;\n- 1 x PDU 7xC13 ili šuko 16A, za vertikalnu\nmontažu, crna;\n- 1 x PDU 7xC13 ili šuko 16A, za vertikalnu\nmontažu, crvena;\n- 1 x Tray - fiksni nosač aktivne opreme;\n- 3 x patch guide 1U za horizontalno ranžiranje;"]
[null,null,"Nabavka, isporuka i montaža.","kom",1,null,{"$f":"E50*F50","v":{"v":0,"d":"0.00"}}]
[]
["2.2.",null,"Patch panel za ugradnju u 19\" rek orman, visine 1 HU, sa slotovima za 24x RJ-45 modula. Pozicija obuhvata:"]
["-",null,"prazan patch panel sa 24 slota za ugradnju RJ-45 modula, sa uzemljenjem i držačem kablova sa zadnje strane; sličan tipu Schneider Electric VDI6691F","kom",1]
["-",null,"modul RJ-45 Cat.6 oklopljen (shielded) za ugradnju u patch panel; sličan tipu Schneider Electric VDI7700GE","kom",24]
[null,null,"Nabavka, isporuka i montaža.","kom",2,null,{"$f":"E55*F55","v":{"v":0,"d":"0.00"}}]
[]
["2.3.",null,"Optički patch panel za ugradnju u 19\" rek orman, visine 1 HU. Pozicija obuhvata:"]
["-",null,"izvlačivu optičku fioku sa 12 slotova za montažu SC duplex adaptera; sličan tipu Schneider Electric VDI96722","kom",1]
["-",null,"kasetu za splajsovanje sa držačem za 12 splajs protektora; Schneider Electric VDIF09022x","kom",1]
["-",null,"SC monomodni duplex adapter; sličan tipu Schneider Electric.","kom",6]
[null,null,"Nabavka, isporuka i montaža.","kom",1,null,{"$f":"E61*F61","v":{"v":0,"d":"0.00"}}]
[]
["2.4.",null,"Telekomunikaciona utičnica (za WI-FI) sa 1x RJ-45 modula za uzidnu (ugradnu) montažu. Pozicija obuhvata:"]
["-",null,"monoblok kutiju dimenzija 65 x 65 x 36 mm za uzidnu montažu sa dekorativnim ramom (tip Schneider Electric Unica MGU22.302.18 ili odgovarajući)","kom",1]
["-",null,"2M dekorativni nosač sa 1 slot  za montažu RJ-45 modula (tip Schneider Electric Unica MGU9.460.18 ili odgovarajući)","kom",1]
["-",null,"modul RJ-45 Cat.6A oklopljen (shielded) za ugradnju u utičnicu (tip Schneider Electric VDIB1771X ili odgovarajući)","kom",1]
[null,null,"Nabavka, isporuka, montaža i povezivanje na kablovsku instalaciju.","kom",4,null,{"$f":"E67*F67","v":{"v":0,"d":"0.00"}}]
[]
["2.5.",null,"Telekomunikaciona utičnica sa 2 x RJ-45 modula za uzidnu (ugradnu) montažu. Pozicija obuhvata:"]
["-",null,"monoblok kutiju dimenzija 65 x 65 x 36 mm za uzidnu montažu sa dekorativnim ramom (tip Schneider Electric Unica MGU22.302.18 ili odgovarajući)","kom",1]
["-",null,"2M dekorativni nosač sa 2 slota  za montažu RJ-45 modula (tip Schneider Electric Unica MGU9.461.18 ili odgovarajući)","kom",1]
["-",null,"modul RJ-45 Cat.6A oklopljen (shielded) za ugradnju u utičnicu (tip Schneider Electric VDIB1771X ili odgovarajući)","kom",2]
[null,null,"Nabavka, isporuka, montaža i povezivanje na kablovsku instalaciju.","kom",13,null,{"$f":"E73*F73","v":{"v":0,"d":"0.00"}}]
[]
["2.6.",null,"Telekomunikaciona utičnica sa 1 x RJ-45 modula za uzidnu (ugradnu) montažu. Pozicija obuhvata:"]
["-",null,"monoblok kutiju dimenzija 65 x 65 x 36 mm za uzidnu montažu sa dekorativnim ramom (tip Schneider Electric Unica MGU22.302.18 ili odgovarajući)","kom",1]
["-",null,"2M dekorativni nosač sa 1 slot  za montažu RJ-45 modula (tip Schneider Electric Unica MGU9.461.18 ili odgovarajući)","kom",1]
["-",null,"modul RJ-45 Cat.6A oklopljen (shielded) za ugradnju u utičnicu (tip Schneider Electric VDIB1771X ili odgovarajući)","kom",1]
[null,null,"Nabavka, isporuka, montaža i povezivanje na kablovsku instalaciju.","kom",5,null,{"$f":"E79*F79","v":{"v":0,"d":"0.00"}}]
[]
["2.7.",null,"S/FTP  četvoroparični  kabl,  kategorije  7,  100 ohm, 23AWG, ekvivalentnih karakteristika tipa Cat.   7   4x2x23/1   AWG   S/FTP   FR-LSZH  (9928001xxx)    Teldor.   \n"]
[null,null,"Nabavka, isporuka i polaganje kablova na nosače kablova ili u savitljivim instalacionim cevima.","m",790,null,{"$f":"E82*F82","v":{"v":0,"d":"0.00"}}]
[]
["2.8.",null,"Instalacione cevi potrebnog prečnika, \"halogen-free\"."]
[null,null,"Nabavka, isporuka i polaganje .","m",790,null,{"$f":"E85*F85","v":{"v":0,"d":"0.00"}}]
[]
["2.9.",null,"Sitan instalacioni i montažni materijal; dodatni sitni građevinski i stolarski radovi.","paušal",1,null,{"$f":"E87*F87","v":{"v":0,"d":"0.00"}}]
[]
["2.10.",null,"Završno ispitivanje, testiranje sistema, izrada projekta izvedenog objekta (3 primerka na papiru + 3 u elektronskom obliku na CDR mediju), obuka korisnika, puštanje u ispravan rad i predaja tehničke dokumentacije.","paušal",1,null,{"$f":"E89*F89","v":{"v":0,"d":"0.00"}}]
[]
[{"$nulls":3},"UKUPNO:",null,null,{"$f":"SUM(G48:G90)","v":{"v":0,"d":"0.00"}}]
[]
[3,null,"SISTEM VIDEO NADZORA"]
[]
[null,null,"NAPOMENA:\n- Projektom je predviđen IP CCTV sistem.Kao koncentracija sistema video nadzora, predviđeni su 19“ REK ormani strukturnog kablovskog sistema\nOvoim predmerom predviđeno je samo postavljanje potrebne instalacije sistema, dok je postavljanje aktivne opreme (kamere, snimači i sl.) obaveza investitora .\nPotrebni prespojni kablovi na strani REK ormana i na strani kamere nisu predmet ovog projekta i biće nabavlјani zajedno sa aktivnom opremom sistema video nadzora.\n"]
[]
["3.1.",null,"Patch panel za ugradnju u 19\" rek orman, visine 1 HU, sa slotovima za 24x RJ-45 modula. Pozicija obuhvata:"]
["-",null,"prazan patch panel sa 24 slota za ugradnju RJ-45 modula, sa uzemljenjem i držačem kablova sa zadnje strane; sličan tipu Schneider Electric VDI6691F","kom",1]
["-",null,"modul RJ-45 Cat.6 oklopljen (shielded) za ugradnju u patch panel; sličan tipu Schneider Electric VDI7700GE","kom",24]
[null,null,"Nabavka, isporuka i montaža.","kom",1,null,{"$f":"E100*F100","v":{"v":0,"d":"0.00"}}]
[]
["3.2.",null,"Isporuka, montaža i povezivanje računarsko - telefonske utičnice sa 1 modul RJ-45 S/FTP Cat.6a, za montažu na zid, u kompletu sa nadgradnom kutijom i setom za montažu modula.","kom",10,null,{"$f":"E102*F102","v":{"v":0,"d":"0.00"}}]
[]
["3.3.",null,"S/FTP  četvoroparični  kabl,  kategorije  7,  100 ohm, 23AWG, ekvivalentnih karakteristika tipa Cat.   7   4x2x23/1   AWG   S/FTP   FR-LSZH  (9928001xxx)    Teldor.   \n"]
[null,null,"Nabavka, isporuka i polaganje kablova na nosače kablova ili u savitljivim instalacionim cevima.","m",240,null,{"$f":"E105*F105","v":{"v":0,"d":"0.00"}}]
[]
["3.4.",null,"Testiranje i merenje instalacionog kabla strukturnog kablovskog sistema sa izradom protokola merenja, za svaku liniju. \n","kom",10,null,{"$f":"E107*F107","v":{"v":0,"d":"0.00"}}]
[]
["3.5.",null,"Instalacione cevi potrebnog prečnika, \"halogen-free\"."]
[null,null,"Nabavka, isporuka i polaganje .","m",240,null,{"$f":"E110*F110","v":{"v":0,"d":"0.00"}}]
[]
["3.6.",null,"Sitan instalacioni i montažni materijal; dodatni sitni građevinski i stolarski radovi.","paušal",1,null,{"$f":"E112*F112","v":{"v":0,"d":"0.00"}}]
[]
["3.7.",null,"Završno ispitivanje, testiranje sistema, izrada projekta izvedenog objekta (3 primerka na papiru + 3 u elektronskom obliku na CDR mediju), obuka korisnika, puštanje u ispravan rad i predaja tehničke dokumentacije.","paušal",1,null,{"$f":"E114*F114","v":{"v":0,"d":"0.00"}}]
[]
[{"$nulls":3},"UKUPNO:",null,null,{"$f":"SUM(G94:G115)","v":{"v":0,"d":"0.00"}}]
[]
[4,null,"TV INSTALACIJE U OBJEKTU"]
[]
[null,null,"Sva kablovska instalacija se zavrsava u predvidjenom  RACK ormanu u prizemlju, u kome je predvidjen prostor za montazu aktivne opreme provajdera kablovske televizije."]
[]
["4.1.",null,"TV utičnica sa 1 x TV modulom za uzidnu (ugradnu) montažu. Pozicija obuhvata:"]
["-",null,"monoblok kutiju dimenzija 65 x 65 x 36 mm za uzidnu montažu sa dekorativnim ramom (tip Schneider Electric Unica MGU22.302.18 ili odgovarajući)","kom",1]
["-",null,"2M dekorativni nosač sa 2 slota  za montažu TV modula (tip Schneider Electric Unica MGU9.461.18 ili odgovarajući)","kom",1]
["-",null,"modul TV  za ugradnju u utičnicu ","kom",1]
[null,null,"Nabavka, isporuka, montaža i povezivanje na kablovsku instalaciju.","kom",5,null,{"$f":"E126*F126","v":{"v":0,"d":"0.00"}}]
[]
["4.2.",null,"Nabavka i postavljanje koaksijalnog kabla tipa  HF u cevima odgovarajućeg prečnika , provodnici se vode delom u zidu ispod maltera, delom iznad spustenog plafona na regalima ili obujmicama:\n'- RG 6 HF, 75Ω:\n","m",120,null,{"$f":"E128*F128","v":{"v":0,"d":"0.00"}}]
[]
["4.3.",null,"Instalacione cevi - Ø16/11mm:\nNabavka, isporuka i polaganje, obeležavanje trasa, dubljenje kanala i opravka zida do završnih radova","m",90,null,{"$f":"E130*F130","v":{"v":0,"d":"0.00"}}]
[]
["4.4.",null,"Sitan potrošni materijal i nepredvidjeni troškovi.","paušal",1,null,{"$f":"E132*F132","v":{"v":0,"d":"0.00"}}]
[]
["4.5.",null,"Završno ispitivanje, testiranje sistema, izrada projekta izvedenog objekta (3 primerka na papiru + 3 u elektronskom obliku na CDR mediju), obuka korisnika, puštanje u ispravan rad i predaja tehničke dokumentacije.","paušal",1,null,{"$f":"E134*F134","v":{"v":0,"d":"0.00"}}]
[]
[{"$nulls":3},"UKUPNO:",null,null,{"$f":"SUM(G121:G135)","v":{"v":0,"d":"0.00"}}]
[]
["5",null,"PROTIVPOŽARNA MASA"]
["5.1",null,"Zaptivanje kablovskih prodora kroz požarne sektore  vatrootpornom masom.\nMasa mora da poseduje:\nSertifikat o otpornosti prema požaru negorivih materijala za zaptivanje prodora instalacija na granici požarnog sektora u skladu sa normativom DIN 4102 deo 9- Fire behaviour of building materials and elements; seals for cable penetrations; concepts, requirements and testing., odnosno DIN 4102 deo 11- Fire behaviour of building materials and building components; pipe encasements, pipe bushings, service shafts and ducts, and barriers across inspection openings; terminology, requirements and testing, a na osnovu Pravilnika o obaveznom atestiranju elemenata tipskih građevinskih konstrukcija na otpornost prema požaru i o uslovima koje moraju ispunjavati organizacije udruženog rada ovlašćene za testiranje tih proizvoda (Pravilnik o obaveznom atestiranju „Sl. list SFRJ“ br. 24/90) i standardima SRPS ISO 834 (1994) i SRPS U.J1.090 (1986) izdatim od strane imenovanog tela.","pausal",1,null,{"$f":"E139*F139","v":{"v":0,"d":"0.00"}}]
[]
[]
[{"$nulls":3},"UKUPNO:",null,null,{"$f":"SUM(G139:G141)","v":{"v":0,"d":"0.00"}}]
[]
[]
[null,"REKAPITULACIJA RADOVA"]
[]
[null,"1 PRIVODNA IT INFRASTRUKTURA",{"$nulls":4},{"$f":"G43","v":{"v":0,"d":"0.00"}}]
[]
[null,"2 STRUKTURNI KABLOVSKI SISTEMI",{"$nulls":4},{"$f":"G91","v":{"v":0,"d":"0.00"}}]
[]
[null,"3 SISTEM VIDEO NADZORA",{"$nulls":4},{"$f":"G116","v":{"v":0,"d":"0.00"}}]
[]
[null,"4 TV INSTALACIJE U OBJEKTU",{"$nulls":4},{"$f":"G136","v":{"v":0,"d":"0.00"}}]
[]
[null,"5 PROTIVPOŽARNA MASA",{"$nulls":4},{"$f":"G142","v":{"v":0,"d":"0.00"}}]
[]
[]
[null,null,"I TELEKOMUNIKACIONE INSTALACIJE",null,null,"Ukupno",{"$f":"SUM(G146:G156)","v":{"v":0,"d":"0.00"}}]
[]
[]
[]
[null,null,"II SIGNALNE INSTALACIJE - SISTEM ZA DOJAVU POŽARA"]
[]
["Ovom specifikacijom predviđa se isporuka sve opreme i materijala navedenih u pozicijama i sveg sitnog nespecificiranog materijala potrebnog za kompletnu izradu, ugrađivanje, ispitivanje i puštanje u rad, kao i dovođjenje u ispravno-prvobitno stanje svih mesta oštećenih na već izvedenim radovima.\nU cenu se uračunava cena sve navedene opreme i materijala u pozicijama i sav sitan nespecificirani materijal, transport i cena radne snage i svi porezi i doprinosi na materijal i rad. Cena uključuje i izradu sve eventualno potrebne radioničke dokumentacije, ispitivanja i puštanje u ispravan rad svih postrojenja i instalacija navedenih u pozicijama, kao i izdavanje potrebnih atesta i sertifikata. \nNAPOMENA:                                                               \nSvi kablovi i pasivne komponente za vođenje kablova izrađene od plastike a koje se ne ugrađuju u zid pod malter moraju biti u HALLOGEN FREE izvedbi"]
[]
["1",null,"Specifikacija opreme"]
[]
["1.1",null,"Analogno-adresabilna mikroprocesorski kontrolisana centrala sa 1 petljom, kapaciteta 250 adresabilnih elemenata u petlji, maksimalna dužina petlje 2000m, mogućnost umrežavanja do 32 centrale, 40x4 karaktera displej, LED indikacija 20 zona, 2 relejna izlaza na centrali, auto-search i auto-check funkcije, detekcija dvostruke adrese, memorija 4,000 događaja, do 50 adresabilnih sirena po petlji, 2 nadzirana sirenska izlaza, dnevno-noćni režim rada, podešavanje osetljivosti detektora, USB port za konfigurisanje centrala, dimenzije 443 mm x 268 mm x 109 mm, poseduje EN 54-2, 4 standard. U kućištu centale ima mesta za smeštanje dve akumulatorske baterije 12V, 7.5Ah.  Tip DET-CAD-150-1 Detnov, Španija. Isporučilac opreme Almaks Beograd.","kom",1,null,{"$f":"E168*F168","v":{"v":0,"d":"0.00"}}]
[]
["1.2",null,"Orman za akumulatorske baterije i adresabilne module  sa pratecim elementima, relei, uvodnice.","kom",1,null,{"$f":"E170*F170","v":{"v":0,"d":"0.00"}}]
[]
["1.3",null,"Akumulator 12V, 18Ah za adresibilnu centralu.","kom",2,null,{"$f":"E172*F172","v":{"v":0,"d":"0.00"}}]
[]
["1.4",null,"Analogno-adresabilni optički detektor, kompenzacija uticaja prašine,radni napon 22-38V DC, struja u alarmnom stanju 11mA, u mirnom stanju 300µA.Pokriva prostor od 60m², u skladu sa EN54-7. Tip DET-DOD-220A Detnov, Španija.","kom",25,null,{"$f":"E174*F174","v":{"v":0,"d":"0.00"}}]
[]
["1.5",null,"Standardna baza za montažu adresabilnih detektora. Tip DET-Z-200 Detnov, Španija.","kom",25,null,{"$f":"E176*F176","v":{"v":0,"d":"0.00"}}]
[]
["1.6",null,"Adresabilni ručni javljač požara, resetujući, radni napon 22-38V DC, struja u mirnom stanju 300µA, struja u alarmnom stanju 3mA, u skladu sa standardom EN54-11, stepen zaštite IP 40. Tip DET-MAD-450 Detnov, Španija.","kom",5,null,{"$f":"E178*F178","v":{"v":0,"d":"0.00"}}]
[]
["1.7",null,"Konvencionalna protivpožarna sirena za unutrašnju  montažu, selekcija 3 tona, niske potrošnje (7mA), 87.5dB/1m, napajanje 20Vdc-28Vdc, u saglasnosti sa EN 54-3 standardom. Tip DET-SCD100 Detnov, Španija.","kom",4,null,{"$f":"E180*F180","v":{"v":0,"d":"0.00"}}]
[]
["1.8",null,"Telefonski GSM dojavni automat.\nTip PVOX-OUT  ili sličan.\nIsporuka,montaža i povezivanje.\n","kom",1,null,{"$f":"E182*F182","v":{"v":0,"d":"0.00"}}]
[]
[{"$nulls":3},"UKUPNO:",null,null,{"$f":"SUM(G167:G183)","v":{"v":0,"d":"0.00"}}]
[]
["2",null,"Specifikacija instalacionog materijala"]
[]
["2.1",null,"Isporuka i ugradnja Instalacionog kabla tipa JH(St)H 2x2x0,8mm","m",270,null,{"$f":"E188*F188","v":{"v":0,"d":"0.00"}}]
[]
["2.2",null,"Isporuka i ugradnja vatrootpornog instalacionog kabla tipa JE-H(St)H 1x2x0.8mm FE180/E30 za povezivanje sirena međusobno i sa centralom.","m",50,null,{"$f":"E190*F190","v":{"v":0,"d":"0.00"}}]
[]
["2.3",null,"Isporuka i ugradnja vatrootpornog instalacionog kabla tipa NHXHX Fe180 E30  2x1,5mm2 za povezivanje izvršnih funkcija.","m",25,null,{"$f":"E192*F192","v":{"v":0,"d":"0.00"}}]
[]
["2.4",null,"Isporuka i ugradnja pod malter, nazidno ili u spušteni plafon tvrdih HF cevi odgovarajućeg prečnika.","m",270,null,{"$f":"E194*F194","v":{"v":0,"d":"0.00"}}]
[]
["2.5",null,"Obujmica sa funkcijom u požaru E90 u kompletu sa ankerom, isprava o usaglašenosti sa LVD direktivom izdata od strane imenovanog tela u RS, isprava o usaglašenosti sa normativom DIN4102-12","kom",75,null,{"$f":"E196*F196","v":{"v":0,"d":"0.00"}}]
[]
["2.6",null,"Isporuka i ugradnja kabla N2HX-J 3x1.5 mm2 za napajanje centrale. ","m",10,null,{"$f":"E198*F198","v":{"v":0,"d":"0.00"}}]
[]
["2.7",null,"Zaptivanje kablovskih prodora kroz zidove vatrootpornom masom.\nMasa mora da poseduje:\nSertifikat o otpornosti prema požaru negorivih materijala za zaptivanje prodora instalacija na granici požarnog sektora u skladu sa normativom DIN 4102 deo 9- Fire behaviour of building materials and elements; seals for cable penetrations; concepts, requirements and testing., odnosno DIN 4102 deo 11- Fire behaviour of building materials and building components; pipe encasements, pipe bushings, service shafts and ducts, and barriers across inspection openings; terminology, requirements and testing, a na osnovu Pravilnika o obaveznom atestiranju elemenata tipskih građevinskih konstrukcija na otpornost prema požaru i o uslovima koje moraju ispunjavati organizacije udruženog rada ovlašćene za testiranje tih proizvoda (Pravilnik o obaveznom atestiranju „Sl. list SFRJ“ br. 24/90) i standardima SRPS ISO 834 (1994) i SRPS U.J1.090 (1986) izdatim od strane imenovanog tela.\n","paušal",1,null,{"$f":"E200*F200","v":{"v":0,"d":"0.00"}}]
[]
["2.8",null,"Sitan i nestandardni instalacioni materijal - paušalno","paušal",1,null,{"$f":"E202*F202","v":{"v":0,"d":"0.00"}}]
[]
[{"$nulls":3},"UKUPNO:",null,null,{"$f":"SUM(G187:G203)","v":{"v":0,"d":"0.00"}}]
[]
["3",null,"Specifikacija radova i ostalih troškova"]
[]
["3.1",null,"Montaža opreme na postavljenu i obeleženu instalaciju.","kpl.",1,null,{"$f":"E208*F208","v":{"v":0,"d":"0.00"}}]
[]
["3.2",null,"Stručni nadzor nad izvođenjem radova od strane licenciranog inženjera (potrebno uverenje o položenom stručnom ispitu iz oblasti zaštite od požara).","kpl.",1,null,{"$f":"E210*F210","v":{"v":0,"d":"0.00"}}]
[]
["3.3",null,"Podešavanje uređaja i opreme, povezivanje centralnih uređaja, testiranje i programiranje, puštanje u rad, provera funkcionalne ispravnosti sistema i obuka korisnika, izrada uputstva za rukovanje.","kpl.",1,null,{"$f":"E212*F212","v":{"v":0,"d":"0.00"}}]
[]
["3.4",null,"Prvo kontrolisanje sistema, eventualne korekcije sistema.","kpl.",1,null,{"$f":"E214*F214","v":{"v":0,"d":"0.00"}}]
[]
["3.5",null,"Izrada projekta izvedenog objekta.","paušal",1,null,{"$f":"E216*F216","v":{"v":0,"d":"0.00"}}]
[]
["3.6",null,"Završna električna merenja na kablovima (otpor izolacije, preslušavanje i ispitivanje parica na prekid i kratak spoj).","kpl.",1,null,{"$f":"E218*F218","v":{"v":0,"d":"0.00"}}]
[]
[{"$nulls":3},"UKUPNO:",null,null,{"$f":"SUM(G203:G219)","v":{"v":0,"d":"0.00"}}]
[]
[]
[null,"REKAPITULACIJA RADOVA"]
[]
[null,"1 SPECIFIKACIJA OPREME"]
[]
[null,"2 SPECIFIKACIJA INSTALACIONOG MATERIJALA"]
[]
[null,"3 SPECIFIKACIJA RADOVA I OSTALIH TROŠKOVA"]
[]
[null,null,"II SIGNALNE INSTALACIJE \n- SISTEM ZA DOJAVU POŽARA",null,null,"Ukupno",{"$f":"SUM(G224:G230)","v":{"v":0,"d":"0.00"}}]
[]
[]
[]
[]
[null,"KONAČNA REKAPITULACIJA"]
[]
[null,"I TELEKOMUNIKACIONE INSTALACIJE",{"$nulls":4},{"$f":"G158","v":{"v":0,"d":"0.00"}}]
[]
[null,"II SIGNALNE INSTALACIJE - SISTEM ZA DOJAVU POŽARA",{"$nulls":4},{"$f":"G231","v":{"v":0,"d":"0.00"}}]
[]
[]
[null,null,"TELEKOMUNIKACIONE I SIGNALNE INSTALACIJE",null,null,"Ukupno",{"$f":"SUM(G237:G241)","v":{"v":0,"d":"0.00"}}]

{"sheet":"VI_MASINSKE","index":6,"n_rows":96,"n_cols":7,"rows_kept":96,"merged":[[1,1,1,6],[40,1,40,4],[61,1,61,4],[71,1,71,4],[80,1,80,4],[95,1,95,4]]}
[]
[null,"MAŠINSKE INSTALACIJE"]
[]
["RED. BR.","ŠIFRA \nPOZ.","OPIS","J.M.","KOLIČINA","JED. CENA \n(BEZ PDV-a)","IZNOS (BEZ PDV-a)"]
[null,"I","CENTRALNO GREJANJE"]
[]
[1,null,"Vaillant ecoTEC plus VU 486/5-5\nGasni kondenzacioni kotao","kom",{"v":1,"d":"1.00"},null,{"$f":"E7*F7","v":0}]
[2,null,"Vaillant horizontalni dimovodni komplet za kondenzacione kotlove ø80/125","kom",{"v":1,"d":"1.00"},null,{"$f":"E8*F8","v":0}]
[3,null,"Vaillant sensoHOME VRT 380\nDigitalni modulacioni sobni termostat","kom",{"v":1,"d":"1.00"},null,{"$f":"E9*F9","v":0}]
[4,null,"Ormarić za smeštaj kolektorskih setova, sa bravicom, 800x400x110","kom",{"v":3,"d":"3.00"},null,{"$f":"E10*F10","v":0}]
[5,null,"Kolektorski set 5/4\", komplet s azavršnim T-komadom, sa odzračnim lončetom i slavinom za PIP, sa držačima, sa priključcima 3/4\"euroconus, i to:"]
[null,null,"9 krugova","cpl.",{"v":2,"d":"2.00"},null,{"$f":"E12*F12","v":0}]
[null,null,"5 krugova","cpl.",{"v":1,"d":"1.00"},null,{"$f":"E13*F13","v":0}]
[6,null,"Kuglasta slavina, navojna, holenderska 5/4\"","kom",{"v":6,"d":"6.00"},null,{"$f":"E14*F14","v":0}]
[7,null,"Kosi hvatač nečistoća 5/4\"","kom",{"v":1,"d":"1.00"},null,{"$f":"E15*F15","v":0}]
[8,null,"Kosi balansni ventil, sa holenderskom, rastavljivom vezom"]
[null,null,"5/4\"","kom",{"v":1,"d":"1.00"},null,{"$f":"E17*F17","v":0}]
[null,null,"1\"","kom",{"v":1,"d":"1.00"},null,0]
[null,null,"3/4\"","kom",{"v":1,"d":"1.00"},null,0]
[9,null,"Slavina za PIP, sa kapom i lancem 1/2\"","kom",{"v":2,"d":"2.00"},null,0]
[10,null,"Aluminijumswki člankasti radijator Global VOX H600","čl.",{"v":297,"d":"297.00"},null,0]
[11,null,"Aluminijumski radijatorski set (čepovi, redukcije, ručni odzračni ventil).","cpl.",{"v":23,"d":"23.00"},null,0]
[12,null,"Set za nošenje i oslanjanje radijatora (Radijatorske konzole, držači i odstojnici)","cpl.",{"v":23,"d":"23.00"},null,0]
[13,null,"Termostatski radijatorski set 1/2\" (Termostatski radijatorski ventil, radijatorski navijak i termoglava)","cpl.",{"v":23,"d":"23.00"},null,0]
[14,null,"Prelaz sa Al-pex ø16x2 - 3/4\" Euroconus","kom",{"v":46,"d":"46.00"},null,0]
[15,null,"Prelaz sa Al-pex ø16x2 - 1/2\" SN","kom",{"v":46,"d":"46.00"},null,0]
[16,null,"Cu cevi, sledećih diminzija:"]
[null,null,"ø42x1,5mm","m",{"v":10,"d":"10.00"},null,{"$f":"E28*F28","v":0}]
[null,null,"ø35x1,5mm","m",{"v":10,"d":"10.00"},null,{"$f":"E29*F29","v":0}]
[null,null,"ø28x1,5mm","m",{"v":5,"d":"5.00"},null,{"$f":"E30*F30","v":0}]
[null,null,"ø22x1mm","m",{"v":5,"d":"5.00"},null,{"$f":"E31*F31","v":0}]
[17,null,"Za Cu i MS fiting, disugas i žicu, šelne, konzole, oslonce, spojni i zaptivni materijal, uzima se 50% od vrednosti pozicije cevi.","%",{"v":0.5,"d":"0.50"},{"$f":"G28+G29+G30+G31","v":{"v":0,"d":"0.00"}},{"$f":"E32*F32","v":0}]
[18,null,"Termičak izolacija bakarnih cevi, sunđerastom cevnom izolacijom debljine 9mm"]
[null,null,"ø42x9mm","m",{"v":10,"d":"10.00"},null,{"$f":"E34*F34","v":0}]
[null,null,"ø35x9mm","m",{"v":10,"d":"10.00"},null,0]
[null,null,"ø28x9mm","m",{"v":5,"d":"5.00"},null,0]
[null,null,"ø22x9mm","m",{"v":5,"d":"5.00"},null,0]
[19,null,"Predizolovana Al pex cev ø16x2mm","m",{"v":700,"d":"700.00"},null,0]
[20,null,"Držači cevi i ostali potrošni materijal i oprema za postavljanje cevne mreže, uzima se 50% od vrednosti pozicije cevi.","%",{"v":0.5,"d":"0.50"},{"$f":"G38","v":{"v":0,"d":"0.00"}},0]
[]
[null,"UKUPNO CENTRALNO GREJANJE",{"$nulls":3},"Ukupno din.",{"$f":"SUM(G6:G40)","v":0}]
[]
[]
[null,"II","KLIMATIZACIJA - VRF SISTEM"]
[]
[1,null,"Toshiba MCY-MHP0604HS8-E\nSpoljna jedinica\nQgr: 18kW\nQhl: 15,5kW","kom",{"v":2,"d":"2.00"},null,{"$f":"E46*F46","v":0}]
[2,null,"Toshiba MMK-UP0071HP-E\nUnutrašnja jedinica\nQgr: 2,5kW\nQhl: 2,2kW","kom",{"v":7,"d":"7.00"},null,0]
[3,null,"Toshiba MMK-UP0091HP-E\nUnutrašnja jedinica\nQgr: 3,2kW\nQhl: 2,8kW","kom",{"v":5,"d":"5.00"},null,0]
[4,null,"Toshiba RBM-BY55E\nY-Račve (par za tečnu i gasnu fazu) za grananje cevovoda (<18kW)","kom",{"v":10,"d":"10.00"},null,0]
[5,null,"Toshiba RBC-AMSU51-ES\nŽičani daljinski upravljač za komforno rukovanje sa displejom koji ima pozadinsko osvetljenje","kom",{"v":12,"d":"12.00"},null,0]
[6,null,"Komunikacioni kabl","m",{"v":180,"d":"180.00"},null,0]
[7,null,"Bakarne cevi, predizolovane termičkom izolacijom sa parnom branom, sledećih dimenzija:"]
[null,null,"ø6,35mm (1/4\")","m",{"v":50,"d":"50.00"},null,{"$f":"E53*F53","v":0}]
[null,null,"ø9,52mm (3/8\")","m",{"v":130,"d":"130.00"},null,0]
[null,null,"ø12,7mm (1/2\")","m",{"v":20,"d":"20.00"},null,0]
[null,null,"ø15,88mm (5/8\")","m",{"v":40,"d":"40.00"},null,0]
[null,null,"ø19,05mm (3/4\")","m",{"v":20,"d":"20.00"},null,0]
[8,null,"Za cu fiting, spojni i zaptivni materijal, šelne, konzole i oslonce, uzima se 30% od vrednosti pozicije cevi.","%",{"v":0.3,"d":"0.30"},{"$f":"G53+G54+G55+G56+G57","v":{"v":0,"d":"0.00"}},0]
[9,null,"Dopunjavanje sistem afreonom R410A","kg",{"v":10,"d":"10.00"},null,0]
[10,null,"Izrada konzola za nošenje spoljašnjih jedinica klima, od čeličnih profila, očišćeno, minizirano i obojeno završnom bojuom.","kg",{"v":80,"d":"80.00"},null,0]
[]
[null,"UKUPNO KLIMATIZACIJA - VRF SISTEM",{"$nulls":3},"Ukupno din.",{"$f":"SUM(G45:G61)","v":0}]
[]
[]
[null,"III","VENTILACIJA"]
[]
[1,null,"Kanalski ventilator S&P VENT 160NK","kom",{"v":1,"d":"1.00"},null,{"$f":"E67*F67","v":0}]
[2,null,"Ventilacioni ventil VV100","kom",{"v":7,"d":"7.00"},null,{"$f":"E68*F68","v":0}]
[3,null,"Spoljna samopadajuća rešetka 400x400mm","kom",{"v":1,"d":"1.00"},null,{"$f":"E69*F69","v":0}]
[4,null,"Ventilacioni spiro kanali, faznski komadi, oslonci i nosači.","kg",{"v":120,"d":"120.00"},null,{"$f":"E70*F70","v":0}]
[]
[null,"UKUPNO VENTILACIJA",{"$nulls":3},"Ukupno din.",{"$f":"SUM(G66:G71)","v":0}]
[]
[]
[null,"IV","OSTALI RADOVI"]
[]
[1,null,"Manji građevinski radovi u vidu bušenja otvora za prolaz cevi, štemovanja zidova za smeštaj ormarića i sl., izrada privremene zaštita izvedenih instalacija i sl.","paušal",{"v":1,"d":"1.00"},null,{"$f":"E77*F77","v":0}]
[2,null,"Ispitivanja i merenja\n• Ispitivanje UGI na čvrstoću i nepropusnost\n• Ispitivanje toplovodne instalacije na hladni hidraulički pritisak\n• Ispitivanje freonskih instalacija\n• Topla i hladna proba\nPredvideti sva potrebna parcijalna ispitivanja, merenja i dokazivanja parametara. Nakon izvršenih merenja i ispitivanja izraditi odgovarajuće zapisnike koje overavaju Odgovorni izvođač radova i Stručni nadzor.","paušal",{"v":1,"d":"1.00"},null,{"$f":"E78*F78","v":0}]
[3,null,"Priprema atestno tehničke dokumentacije, izrada Projekta izvedenog objekta, učestvovanje u tehničkom prijemu.","paušal",{"v":1,"d":"1.00"},null,{"$f":"E79*F79","v":0}]
[]
[null,"UKUPNO OSTALI RADOVI",{"$nulls":3},"Ukupno din.",{"$f":"SUM(G76:G80)","v":0}]
[]
[]
[null,null,"REKAPITULACIJA :"]
[]
[null,null,"I CENTRALNO GREJANJE ",{"$nulls":3},{"$f":"G41","v":{"v":0,"d":"0.00"}}]
[]
[null,null,"II KLIMATIZACIJA - VRF SISTEM",{"$nulls":3},{"$f":"G62","v":{"v":0,"d":"0.00"}}]
[]
[null,null,"III VENTILACIJA",{"$nulls":3},{"$f":"G72","v":{"v":0,"d":"0.00"}}]
[]
[null,null,"IV OSTALI RADOVI",{"$nulls":3},{"$f":"G81","v":{"v":0,"d":"0.00"}}]
[]
[]
[]
[null,"MAŠINSKE INSTALACIJE",{"$nulls":3},"Ukupno ",{"$f":"SUM(G85:G93)","v":{"v":0,"d":"0.00"}}]

{"sheet":"VII_PPZ","index":7,"n_rows":22,"n_cols":7,"rows_kept":22,"merged":[[1,1,1,6],[9,1,9,4],[18,1,18,4],[21,1,21,4]]}
[]
[null,"VII OPREMA I SREDSTAVA ZA ZAŠTITU OD POŽARA"]
[]
["RED. BR.","ŠIFRA \nPOZ.","OPIS","J.M.","KOLIČINA","JED. CENA \n(BEZ PDV-a)","IZNOS (BEZ PDV-a)"]
[]
[null,"A","Ručni i prevozni aparati za gašenje\npožara"]
[1,null,"Ručni protivpožarni aparat za gašanje\nprahom pod stalnim pritiskom azota, oznaka S9","kom",{"v":7,"d":"7.00"},null,{"$f":"E7*F7","v":0}]
[2,null,"Ručni protivpožarni aparat za gašenje\nugljendioksidom, oznaka CO2-5","kom",{"v":2,"d":"2.00"},null,{"$f":"E8*F8","v":0}]
[]
[null,"A UKUPNO RUČNI I PREVOZNI APARATI ZA GAŠENJE POŽARA",{"$nulls":3},"Ukupno",{"$f":"SUM(G7:G8)","v":0}]
[]
[]
[null,"B","Table upozorenja i obaveštenja"]
[1,"T-1","Postupak u slučaju požara","kom",{"v":2,"d":"2.00"},null,{"$f":"E14*F14","v":0}]
[2,"T-2","Strogo zabranjeno pušenje i pristup\notvorenim plamenom","kom",{"v":2,"d":"2.00"},null,{"$f":"E15*F15","v":0}]
[3,"T-3","Ručni vatrogasni aparat S-9 (uputstvo za rukovanje) 30 x 50 cm","kom",{"v":5,"d":"5.00"},null,{"$f":"E16*F16","v":0}]
[4,"T-4","Ručni vatrogasni aparat CO2-5 (uputstvo za rukovanje) 30 x 50 cm","kom",{"v":2,"d":"2.00"},null,{"$f":"E17*F17","v":0}]
[]
[null,"B UKUPNO TABLE UPOZORENJA I OBAVEŠTENJA",{"$nulls":4},{"$f":"SUM(G14:G17)","v":0}]
[]
[]
[null,"UKUPNO OPREME ZA ZAŠTITU OD POŽARA",{"$nulls":3},"Ukupno",{"$f":"G10+G19","v":0}]

{"sheet":"SPOLJNO UREĐENJE","index":8,"n_rows":41,"n_cols":7,"rows_kept":41,"merged":[[1,1,1,6],[10,2,10,5],[37,2,37,5],[40,1,40,4]]}
[]
[null,"SPOLJNE UREĐENJE"]
[]
["RED. BR.","ŠIFRA \nPOZ.","OPIS","J.M.","KOLIČINA","JED. CENA \n(BEZ PDV-a)","IZNOS (BEZ PDV-a)"]
[]
[null,"A","RADOVI NA POPLOČAVANJU"]
[1,null,"Parterno popločanje, behaton pločama, navaka materijala, sa svim potrebnim predradnjama, na pripremljenoj podlozi.","m2",215,null,{"$f":"E7*F7","v":{"v":0,"d":"0.00"}}]
[]
[2,null,"Nabavka materijala i oblaganje stepeništa (sa čelima) pločama paljenog granita.","m1",37,null,{"$f":"E9*F9","v":{"v":0,"d":"0.00"}}]
[]
[null,null,"UKUPNO RADOVI NA POPLOČAVANJU ",{"$nulls":3},{"$f":"SUM(G7:G9)","v":{"v":0,"d":"0.00"}}]
[]
[null,"B","HORTIKULTURNI RADOVI"]
[1,null,"Izrada travnjaka, na pripremljenoj podlozi, sa svim potrebnim predradnjama.","m2",1200,null,{"$f":"E14*F14","v":{"v":0,"d":"0.00"}}]
[]
[2,null,"Nabavka sadnica i sadnja \"Lalinog drveta\"  sa svim potrebnim predradnjama.","kom",2,null,{"$f":"E16*F16","v":{"v":0,"d":"0.00"}}]
[]
[3,null,"Nabavka sadnica i sadnja \"Crvenog javora\"  sa svim potrebnim predradnjama.","kom",3,null,{"$f":"E18*F18","v":{"v":0,"d":"0.00"}}]
[]
[4,null,"Nabavka sadnica i sadnja \"Japanske trešnje\"  sa svim potrebnim predradnjama.","kom",1,null,{"$f":"E20*F20","v":{"v":0,"d":"0.00"}}]
[]
[5,null,"Nabavka sadnica i sadnja\"Stubastog graba\"  sa svim potrebnim predradnjama.","kom",13,null,{"$f":"E22*F22","v":{"v":0,"d":"0.00"}}]
[]
[6,null,"Nabavka sadnica i sadnja \"Tise\" sa svim potrebnim predradnjama.","kom",8,null,{"$f":"E24*F24","v":{"v":0,"d":"0.00"}}]
[]
[7,null,"Nabavka sadnica i sadnja \"Običnog čempresa\" sa svim potrebnim predradnjama.","kom",8,null,{"$f":"E26*F26","v":{"v":0,"d":"0.00"}}]
[]
[8,null,"Nabavka sadnica i sadnja \"Japanske kurike\"  sa svim potrebnim predradnjama.","kom",10,null,{"$f":"E28*F28","v":{"v":0,"d":"0.00"}}]
[]
[9,null,"Nabavka sadnica i sadnja \"Lovor višnje\" sa svim potrebnim predradnjama.","kom",5,null,{"$f":"E30*F30","v":{"v":0,"d":"0.00"}}]
[]
[10,null,"Nabavka sadnica i sadnja \"Spiraea bumalda\"  sa svim potrebnim predradnjama.","kom",20,null,{"$f":"E32*F32","v":{"v":0,"d":"0.00"}}]
[]
[11,null,"Nabavka sadnica i sadnja \"Tumbergove žutike\" sa svim potrebnim predradnjama.","kom",20,null,{"$f":"E34*F34","v":{"v":0,"d":"0.00"}}]
[]
[12,null,"Nabavka sadnica i sadnja \"Ruže Kindertag\" sa svim potrebnim predradnjama.","kom",50,null,{"$f":"E36*F36","v":{"v":0,"d":"0.00"}}]
[]
[null,null,"UKUPNO HORTIKULTURNI RADOVI ",{"$nulls":3},{"$f":"SUM(G14:G37)","v":{"v":0,"d":"0.00"}}]
[]
[]
[null,"UKUPNO SPOLJNO UREĐENJE (A + B)",{"$nulls":3},"Ukupno",{"$f":"G11+G38","v":{"v":0,"d":"0.00"}}]

{"sheet":"REKAPITULACIJA","index":9,"n_rows":26,"n_cols":7,"rows_kept":26,"merged":[[1,2,1,4],[3,2,3,4],[5,2,5,4],[7,2,7,4],[9,2,9,4],[11,2,11,4],[13,2,13,4],[15,2,15,4],[17,2,17,4],[25,2,25,4],[26,4,26,6]]}
[]
[null,null,"R E K A P I T U L A C I J A"]
[]
[null,null,"PRIPREMNO ZAVRŠNI RADOVI",null,null,"RSD",{"$f":"'0_PRIPREMNO_ZAVRSNI'!F19","v":{"v":0,"d":"0.00"}}]
[]
[null,null,"GRAĐEVINSKI I GRAĐEVINSKO-ZANATSKI RADOVI",null,null,"RSD",{"$f":"I_GRAĐEVINSKI_GZ!G389","v":{"v":0,"d":"0.00"}}]
[]
[null,null,"VODOVOD I KANALIZACIJA",null,null,"RSD",{"$f":"II_VIK!G373","v":{"v":0,"d":"0.00"}}]
[]
[null,null,"ELEKTROENERGETSKE INSTALACIJE",null,null,"RSD",{"$f":"III_EE!G261","v":{"v":0,"d":"0.00"}}]
[]
[null,null,"TELEKOMUNIKACIONE I SIGNALNE INSTALACIJE",null,null,"RSD",{"$f":"V_TiS!G243","v":{"v":0,"d":"0.00"}}]
[]
[null,null,"MAŠINSKE INSTALACIJE",null,null,"RSD",{"$f":"VI_MASINSKE!G96","v":{"v":0,"d":"0.00"}}]
[]
[null,null,"OPREMA I SREDSTVA ZA ZAŠTITU OD POŽARA",null,null,"RSD",{"$f":"VII_PPZ!G22","v":{"v":0,"d":"0.00"}}]
[]
[null,null,"SPOLJNO UREĐENJE",null,null,"RSD",{"$f":"'SPOLJNO UREĐENJE'!G41","v":{"v":0,"d":"0.00"}}]
[]
[]
[null,null,"UKUPNO ",null,null,"RSD",{"$f":"SUM(G4:G18)","v":{"v":0,"d":"0.00"}}]
[null,null,"IZNOS PDV-a",null,null,"RSD",{"$f":"0.2*G21","v":{"v":0,"d":"0.00"}}]
[null,null,"UKUPNO SA PDV-om",null,null,"RSD",{"$f":"G21+G22","v":{"v":0,"d":"0.00"}}]
[]
[]
[null,null,"Napomena: Cene date predmerom i predračunom su bez PDV-a."]